Workbook

Sheet 開始
B1: このテンプレートについて
B2: この業務経費予算ブックを使用すると、計画された費用と実際の費用の差異を追跡できます。
B3: 会社名を入力し、ロゴを追加します。
B4: 計画された費用ワークシートと実際の費用ワークシート内のテーブルの詳細を入力します。
B5: 経費差異ワークシートの表および費用の分析のワークシートのグラフが自動的に更新されます。
B6: メモ:
B7: 各ワークシートの列 A に詳細な手順が記載されています。このテキストは意図的に表示されません。テキストを削除するには、列 A を選択し、[削除] を選択します。テキストを再表示するには、列 A を選択し、フォントの色を変更します。
B8: 表の詳細については、表内で Shift キーを押し、F10 キーを押して、[テーブル] オプションを選択し、[代替テキスト] を選択します。

Sheet 計画された費用
A1: 計画された人件費、オフィス賃貸料、マーケティング費用、トレーニング費用、交通費をこのワークシートのそれぞれの表に入力します。集計は、自動的に計算されます。このワークシートの役に立つ使用方法に関する説明がこの列のセルに表示されます。下向き矢印で開始します。
A2: 右のセルに会社名を入力し、セル N2 にロゴを入力します。このワークシートのタイトルはセル K2 に表示されます。 | B2: 会社名 | K2: 詳細経費見積 | N2: このセルにはロゴのプレースホルダーが表示されます。
A3: ヒントはセル K3 に表示されます。 | K3: 網掛けされているセルが計算されます。
A4: 右のセルに計画された費用ラベルが表示され、セル C4 から N4 に月が、セル O4 に年が、セル R4 にこのテンプレートの使用方法が表示されます。 | B4: 計画された費用 | C4: 1 月 | D4: 2 月 | E4: 3 月 | F4: 4 月 | G4: 5 月 | H4: 6 月 | I4: 7 月 | J4: 8 月 | K4: 9 月 | L4: 10 月 | M4: 11 月 | N4: 12 月 | O4: 年 | R4: ヒント:このテンプレートの使用方法 計画された費用と実際の費用のワークシートの空白のセルにデータを入力すると、経費差異と費用の分析が計算されます。1 つのシートに行を追加した場合、他のシートを一致させる必要があります。
A5: 右のセルから始まる従業員計画の表に人件費を入力します。次の指示はセル A10 に表示されます。 | B5: 人件費 | C5: 1 月 | D5: 2 月 | E5: 3 月 | F5: 4 月 | G5: 5 月 | H5: 6 月 | I5: 7 月 | J5: 8 月 | K5: 9 月 | L5: 10 月 | M5: 11 月 | N5: 12 月 | O5: 年
B6: 給料 | C6: ¥85,000.00 | D6: ¥85,000.00 | E6: ¥85,000.00 | F6: ¥87,500.00 | G6: ¥87,500.00 | H6: ¥87,500.00 | I6: ¥87,500.00 | J6: ¥92,400.00 | K6: ¥92,400.00 | L6: ¥92,400.00 | M6: ¥92,400.00 | N6: ¥92,400.00 | O6: =SUM(C6:N6) -> ¥1,067,000.00
B7: 利益 | C7: =C6*0.27 -> ¥22,950.00 | D7: ¥22,950.00 | E7: ¥22,950.00 | F7: ¥23,625.00 | G7: ¥23,625.00 | H7: ¥23,625.00 | I7: ¥23,625.00 | J7: ¥24,948.00 | K7: ¥24,948.00 | L7: ¥24,948.00 | M7: ¥24,948.00 | N7: ¥24,948.00 | O7: =SUM(C7:N7) -> ¥288,090.00
B8: 小計 | C8: =SUBTOTAL(109,EmployeePlan[1 月]) -> ¥107,950.00 | D8: =SUBTOTAL(109,EmployeePlan[2 月]) -> ¥107,950.00 | E8: =SUBTOTAL(109,EmployeePlan[3 月]) -> ¥107,950.00 | F8: =SUBTOTAL(109,EmployeePlan[4 月]) -> ¥111,125.00 | G8: =SUBTOTAL(109,EmployeePlan[5 月]) -> ¥111,125.00 | H8: =SUBTOTAL(109,EmployeePlan[6 月]) -> ¥111,125.00 | I8: =SUBTOTAL(109,EmployeePlan[7 月]) -> ¥111,125.00 | J8: =SUBTOTAL(109,EmployeePlan[8 月]) -> ¥117,348.00 | K8: =SUBTOTAL(109,EmployeePlan[9 月]) -> ¥117,348.00 | L8: =SUBTOTAL(109,EmployeePlan[10 月]) -> ¥117,348.00 | M8: =SUBTOTAL(109,EmployeePlan[11 月]) -> ¥117,348.00 | N8: =SUBTOTAL(109,EmployeePlan[12 月]) -> ¥117,348.00 | O8: =SUBTOTAL(109,EmployeePlan[年]) -> ¥1,355,090.00
A10: 右のセルから始まるオフィス計画の表にオフィス賃貸料を入力します。次の指示はセル A21 に表示されます。 | B10: オフィス賃貸料 | C10: 1 月 | D10: 2 月 | E10: 3 月 | F10: 4 月 | G10: 5 月 | H10: 6 月 | I10: 7 月 | J10: 8 月 | K10: 9 月 | L10: 10 月 | M10: 11 月 | N10: 12 月 | O10: 年
B11: オフィスの賃貸 | C11: ¥9,800.00 | D11: ¥9,800.00 | E11: ¥9,800.00 | F11: ¥9,800.00 | G11: ¥9,800.00 | H11: ¥9,800.00 | I11: ¥9,800.00 | J11: ¥9,800.00 | K11: ¥9,800.00 | L11: ¥9,800.00 | M11: ¥9,800.00 | N11: ¥9,800.00 | O11: =SUM(C11:N11) -> ¥117,600.00
B12: ガス | D12: ¥400.00 | E12: ¥400.00 | F12: ¥100.00 | G12: ¥100.00 | H12: ¥100.00 | I12: ¥100.00 | J12: ¥100.00 | K12: ¥100.00 | L12: ¥100.00 | M12: ¥400.00 | N12: ¥400.00 | O12: ¥2,300.00
B13: 電気 | C13: ¥300.00 | D13: ¥300.00 | E13: ¥300.00 | F13: ¥300.00 | G13: ¥300.00 | H13: ¥300.00 | I13: ¥300.00 | J13: ¥300.00 | K13: ¥300.00 | L13: ¥300.00 | M13: ¥300.00 | N13: ¥300.00 | O13: ¥3,600.00
B14: 水道 | C14: ¥40.00 | D14: ¥40.00 | E14: ¥40.00 | F14: ¥40.00 | G14: ¥40.00 | H14: ¥40.00 | I14: ¥40.00 | J14: ¥40.00 | K14: ¥40.00 | L14: ¥40.00 | M14: ¥40.00 | N14: ¥40.00 | O14: ¥480.00
B15: 電話 | C15: ¥250.00 | D15: ¥250.00 | E15: ¥250.00 | F15: ¥250.00 | G15: ¥250.00 | H15: ¥250.00 | I15: ¥250.00 | J15: ¥250.00 | K15: ¥250.00 | L15: ¥250.00 | M15: ¥250.00 | N15: ¥250.00 | O15: ¥3,000.00
B16: インターネット アクセス | C16: ¥180.00 | D16: ¥180.00 | E16: ¥180.00 | F16: ¥180.00 | G16: ¥180.00 | H16: ¥180.00 | I16: ¥180.00 | J16: ¥180.00 | K16: ¥180.00 | L16: ¥180.00 | M16: ¥180.00 | N16: ¥180.00 | O16: ¥2,160.00
B17: 事務用品 | C17: ¥200.00 | D17: ¥200.00 | E17: ¥200.00 | F17: ¥200.00 | G17: ¥200.00 | H17: ¥200.00 | I17: ¥200.00 | J17: ¥200.00 | K17: ¥200.00 | L17: ¥200.00 | M17: ¥200.00 | N17: ¥200.00 | O17: ¥2,400.00
B18: セキュリティ | C18: ¥600.00 | D18: ¥600.00 | E18: ¥600.00 | F18: ¥600.00 | G18: ¥600.00 | H18: ¥600.00 | I18: ¥600.00 | J18: ¥600.00 | K18: ¥600.00 | L18: ¥600.00 | M18: ¥600.00 | N18: ¥600.00 | O18: ¥7,200.00
B19: 小計 | C19: =SUBTOTAL(109,OfficePlan[1 月]) -> ¥11,370.00 | D19: =SUBTOTAL(109,OfficePlan[2 月]) -> ¥11,770.00 | E19: =SUBTOTAL(109,OfficePlan[3 月]) -> ¥11,770.00 | F19: =SUBTOTAL(109,OfficePlan[4 月]) -> ¥11,470.00 | G19: =SUBTOTAL(109,OfficePlan[5 月]) -> ¥11,470.00 | H19: =SUBTOTAL(109,OfficePlan[6 月]) -> ¥11,470.00 | I19: =SUBTOTAL(109,OfficePlan[7 月]) -> ¥11,470.00 | J19: =SUBTOTAL(109,OfficePlan[8 月]) -> ¥11,470.00 | K19: =SUBTOTAL(109,OfficePlan[9 月]) -> ¥11,470.00 | L19: =SUBTOTAL(109,OfficePlan[10 月]) -> ¥11,470.00 | M19: =SUBTOTAL(109,OfficePlan[11 月]) -> ¥11,770.00 | N19: =SUBTOTAL(109,OfficePlan[12 月]) -> ¥11,770.00 | O19: =SUBTOTAL(109,OfficePlan[年]) -> ¥138,740.00
A21: 右のセルから始まるマーケティング計画の表にマーケティング費用を入力します。次の指示はセル A30 に表示されます。 | B21: マーケティング費用 | C21: 1 月 | D21: 2 月 | E21: 3 月 | F21: 4 月 | G21: 5 月 | H21: 6 月 | I21: 7 月 | J21: 8 月 | K21: 9 月 | L21: 10 月 | M21: 11 月 | N21: 12 月 | O21: 年
B22: Web サイト ホスティング | C22: ¥500.00 | D22: ¥500.00 | E22: ¥500.00 | F22: ¥500.00 | G22: ¥500.00 | H22: ¥500.00 | I22: ¥500.00 | J22: ¥500.00 | K22: ¥500.00 | L22: ¥500.00 | M22: ¥500.00 | N22: ¥500.00 | O22: =SUM(C22:N22) -> ¥6,000.00
B23: Web サイトの更新 | C23: ¥200.00 | D23: ¥200.00 | E23: ¥200.00 | F23: ¥200.00 | G23: ¥200.00 | H23: ¥1,000.00 | I23: ¥200.00 | J23: ¥200.00 | K23: ¥200.00 | L23: ¥200.00 | M23: ¥200.00 | N23: ¥1,000.00 | O23: ¥4,000.00
B24: 資料の準備 | C24: ¥5,000.00 | D24: ¥0.00 | E24: ¥0.00 | F24: ¥5,000.00 | G24: ¥0.00 | H24: ¥0.00 | I24: ¥5,000.00 | J24: ¥0.00 | K24: ¥0.00 | L24: ¥5,000.00 | M24: ¥0.00 | N24: ¥0.00 | O24: ¥20,000.00
B25: 資料の印刷 | C25: ¥200.00 | D25: ¥200.00 | E25: ¥200.00 | F25: ¥200.00 | G25: ¥200.00 | H25: ¥200.00 | I25: ¥200.00 | J25: ¥200.00 | K25: ¥200.00 | L25: ¥200.00 | M25: ¥200.00 | N25: ¥200.00 | O25: ¥2,400.00
B26: マーケティング イベント | C26: ¥2,000.00 | D26: ¥2,000.00 | E26: ¥2,000.00 | F26: ¥5,000.00 | G26: ¥2,000.00 | H26: ¥2,000.00 | I26: ¥2,000.00 | J26: ¥5,000.00 | K26: ¥2,000.00 | L26: ¥2,000.00 | M26: ¥2,000.00 | N26: ¥5,000.00 | O26: ¥33,000.00
B27: その他の経費 | C27: ¥200.00 | D27: ¥200.00 | E27: ¥200.00 | F27: ¥200.00 | G27: ¥200.00 | H27: ¥200.00 | I27: ¥200.00 | J27: ¥200.00 | K27: ¥200.00 | L27: ¥200.00 | M27: ¥200.00 | N27: ¥200.00 | O27: ¥2,400.00
B28: 小計 | C28: =SUBTOTAL(109,MarketingPlan[1 月]) -> ¥8,100.00 | D28: =SUBTOTAL(109,MarketingPlan[2 月]) -> ¥3,100.00 | E28: =SUBTOTAL(109,MarketingPlan[3 月]) -> ¥3,100.00 | F28: =SUBTOTAL(109,MarketingPlan[4 月]) -> ¥11,100.00 | G28: =SUBTOTAL(109,MarketingPlan[5 月]) -> ¥3,100.00 | H28: =SUBTOTAL(109,MarketingPlan[6 月]) -> ¥3,900.00 | I28: =SUBTOTAL(109,MarketingPlan[7 月]) -> ¥8,100.00 | J28: =SUBTOTAL(109,MarketingPlan[8 月]) -> ¥6,100.00 | K28: =SUBTOTAL(109,MarketingPlan[9 月]) -> ¥3,100.00 | L28: =SUBTOTAL(109,MarketingPlan[10 月]) -> ¥8,100.00 | M28: =SUBTOTAL(109,MarketingPlan[11 月]) -> ¥3,100.00 | N28: =SUBTOTAL(109,MarketingPlan[12 月]) -> ¥6,900.00 | O28: =SUBTOTAL(109,MarketingPlan[年]) -> ¥67,800.00
A30: 右のセルから始まるトレーニングおよびトレーニング計画の表にトレーニングおよび交通費を入力します。次の指示はセル A35 に表示されます。 | B30: トレーニング/交通費 | C30: 1 月 | D30: 2 月 | E30: 3 月 | F30: 4 月 | G30: 5 月 | H30: 6 月 | I30: 7 月 | J30: 8 月 | K30: 9 月 | L30: 10 月 | M30: 11 月 | N30: 12 月 | O30: 年
B31: トレーニング クラス | C31: ¥2,000.00 | D31: ¥2,000.00 | E31: ¥2,000.00 | F31: ¥2,000.00 | G31: ¥2,000.00 | H31: ¥2,000.00 | I31: ¥2,000.00 | J31: ¥2,000.00 | K31: ¥2,000.00 | L31: ¥2,000.00 | M31: ¥2,000.00 | N31: ¥2,000.00 | O31: =SUM(C31:N31) -> ¥24,000.00
B32: トレーニング関連の交通費 | C32: ¥2,000.00 | D32: ¥2,000.00 | E32: ¥2,000.00 | F32: ¥2,000.00 | G32: ¥2,000.00 | H32: ¥2,000.00 | I32: ¥2,000.00 | J32: ¥2,000.00 | K32: ¥2,000.00 | L32: ¥2,000.00 | M32: ¥2,000.00 | N32: ¥2,000.00 | O32: =SUM(C32:N32) -> ¥24,000.00
B33: 小計 | C33: =SUBTOTAL(109,TrainingAndTravelPlan[1 月]) -> ¥4,000.00 | D33: =SUBTOTAL(109,TrainingAndTravelPlan[2 月]) -> ¥4,000.00 | E33: =SUBTOTAL(109,TrainingAndTravelPlan[3 月]) -> ¥4,000.00 | F33: =SUBTOTAL(109,TrainingAndTravelPlan[4 月]) -> ¥4,000.00 | G33: =SUBTOTAL(109,TrainingAndTravelPlan[5 月]) -> ¥4,000.00 | H33: =SUBTOTAL(109,TrainingAndTravelPlan[6 月]) -> ¥4,000.00 | I33: =SUBTOTAL(109,TrainingAndTravelPlan[7 月]) -> ¥4,000.00 | J33: =SUBTOTAL(109,TrainingAndTravelPlan[8 月]) -> ¥4,000.00 | K33: =SUBTOTAL(109,TrainingAndTravelPlan[9 月]) -> ¥4,000.00 | L33: =SUBTOTAL(109,TrainingAndTravelPlan[10 月]) -> ¥4,000.00 | M33: =SUBTOTAL(109,TrainingAndTravelPlan[11 月]) -> ¥4,000.00 | N33: =SUBTOTAL(109,TrainingAndTravelPlan[12 月]) -> ¥4,000.00 | O33: =SUBTOTAL(109,TrainingAndTravelPlan[年]) -> ¥48,000.00
A35: 集計は、右のセルから始まる計画された合計の表に自動的で計算されます。 | B35: 集計 | C35: 1 月 | D35: 2 月 | E35: 3 月 | F35: 4 月 | G35: 5 月 | H35: 6 月 | I35: 7 月 | J35: 8 月 | K35: 9 月 | L35: 10 月 | M35: 11 月 | N35: 12 月 | O35: 年
B36: 月ごとの計画された費用 | C36: =TrainingAndTravelPlan[[#Totals],[1 月]]+MarketingPlan[[#Totals],[1 月]]+OfficePlan[[#Totals],[1 月]]+EmployeePlan[[#Totals],[1 月]] -> ¥131,420.00 | D36: =TrainingAndTravelPlan[[#Totals],[2 月]]+MarketingPlan[[#Totals],[2 月]]+OfficePlan[[#Totals],[2 月]]+EmployeePlan[[#Totals],[2 月]] -> ¥126,820.00 | E36: =TrainingAndTravelPlan[[#Totals],[3 月]]+MarketingPlan[[#Totals],[3 月]]+OfficePlan[[#Totals],[3 月]]+EmployeePlan[[#Totals],[3 月]] -> ¥126,820.00 | F36: =TrainingAndTravelPlan[[#Totals],[4 月]]+MarketingPlan[[#Totals],[4 月]]+OfficePlan[[#Totals],[4 月]]+EmployeePlan[[#Totals],[4 月]] -> ¥137,695.00 | G36: =TrainingAndTravelPlan[[#Totals],[5 月]]+MarketingPlan[[#Totals],[5 月]]+OfficePlan[[#Totals],[5 月]]+EmployeePlan[[#Totals],[5 月]] -> ¥129,695.00 | H36: =TrainingAndTravelPlan[[#Totals],[6 月]]+MarketingPlan[[#Totals],[6 月]]+OfficePlan[[#Totals],[6 月]]+EmployeePlan[[#Totals],[6 月]] -> ¥130,495.00 | I36: =TrainingAndTravelPlan[[#Totals],[7 月]]+MarketingPlan[[#Totals],[7 月]]+OfficePlan[[#Totals],[7 月]]+EmployeePlan[[#Totals],[7 月]] -> ¥134,695.00 | J36: =TrainingAndTravelPlan[[#Totals],[8 月]]+MarketingPlan[[#Totals],[8 月]]+OfficePlan[[#Totals],[8 月]]+EmployeePlan[[#Totals],[8 月]] -> ¥138,918.00 | K36: =TrainingAndTravelPlan[[#Totals],[9 月]]+MarketingPlan[[#Totals],[9 月]]+OfficePlan[[#Totals],[9 月]]+EmployeePlan[[#Totals],[9 月]] -> ¥135,918.00 | L36: =TrainingAndTravelPlan[[#Totals],[10 月]]+MarketingPlan[[#Totals],[10 月]]+OfficePlan[[#Totals],[10 月]]+EmployeePlan[[#Totals],[10 月]] -> ¥140,918.00 | M36: =TrainingAndTravelPlan[[#Totals],[11 月]]+MarketingPlan[[#Totals],[11 月]]+OfficePlan[[#Totals],[11 月]]+EmployeePlan[[#Totals],[11 月]] -> ¥136,218.00 | N36: =TrainingAndTravelPlan[[#Totals],[12 月]]+MarketingPlan[[#Totals],[12 月]]+OfficePlan[[#Totals],[12 月]]+EmployeePlan[[#Totals],[12 月]] -> ¥140,018.00 | O36: =TrainingAndTravelPlan[[#Totals],[年]]+MarketingPlan[[#Totals],[年]]+OfficePlan[[#Totals],[年]]+EmployeePlan[[#Totals],[年]] -> ¥1,609,630.00
B37: 合計の計画された費用 | C37: =SUM($C$36:C36) -> ¥131,420.00 | D37: =SUM($C$36:D36) -> ¥258,240.00 | E37: =SUM($C$36:E36) -> ¥385,060.00 | F37: =SUM($C$36:F36) -> ¥522,755.00 | G37: =SUM($C$36:G36) -> ¥652,450.00 | H37: =SUM($C$36:H36) -> ¥782,945.00 | I37: =SUM($C$36:I36) -> ¥917,640.00 | J37: =SUM($C$36:J36) -> ¥1,056,558.00 | K37: =SUM($C$36:K36) -> ¥1,192,476.00 | L37: =SUM($C$36:L36) -> ¥1,333,394.00 | M37: =SUM($C$36:M36) -> ¥1,469,612.00 | N37: =SUM($C$36:N36) -> ¥1,609,630.00

Sheet 実際の費用
A1: 実際の人件費、オフィス賃貸料、マーケティング費用、トレーニング費用、交通費をこのワークシートのそれぞれの表に入力します。合計は、自動的に計算されます。このワークシートの役に立つ使用方法に関する説明がこの列のセルに表示されます。下向き矢印で開始します。
A2: 会社名は右のセルで自動的に更新されます。このワークシートのタイトルはセル K2 に表示されます。セル N2 にロゴを入力します。 | B2: =計画された費用!B2:D3 -> 会社名 | K2: =worksheet_title -> 詳細経費見積 | N2: このセルにはロゴのプレースホルダーが表示されます。
A3: ヒントはセル K3 に表示されます。 | K3: 網掛けされているセルが計算されます。
A4: 右のセルに実際の費用のラベルが表示され、セル C4 から N4 に月が、O4 に年のラベルが表示されます。 | B4: 実際の費用 | C4: 1 月 | D4: 2 月 | E4: 3 月 | F4: 4 月 | G4: 5 月 | H4: 6 月 | I4: 7 月 | J4: 8 月 | K4: 9 月 | L4: 10 月 | M4: 11 月 | N4: 12 月 | O4: 年
A5: 右のセルから始まる従業員の実際の費用の表に人件費を入力します。次の指示はセル A10 に表示されます。 | B5: 人件費 | C5: 1 月 | D5: 2 月 | E5: 3 月 | F5: 4 月 | G5: 5 月 | H5: 6 月 | I5: 7 月 | J5: 8 月 | K5: 9 月 | L5: 10 月 | M5: 11 月 | N5: 12 月 | O5: 年
B6: 給料 | C6: ¥85,000.00 | D6: ¥85,000.00 | E6: ¥85,000.00 | F6: ¥88,000.00 | G6: ¥88,000.00 | H6: ¥88,000.00 | O6: =SUM(C6:N6) -> ¥519,000.00
B7: 利益 | C7: =C6*0.27 -> ¥22,950.00 | D7: ¥22,950.00 | E7: ¥22,950.00 | F7: ¥23,760.00 | G7: ¥23,760.00 | H7: ¥23,760.00 | I7: ¥0.00 | J7: ¥0.00 | K7: ¥0.00 | L7: ¥0.00 | M7: ¥0.00 | N7: ¥0.00 | O7: =SUM(C7:N7) -> ¥140,130.00
B8: 小計 | C8: =SUBTOTAL(109,EmployeeActual[1 月]) -> ¥107,950.00 | D8: =SUBTOTAL(109,EmployeeActual[2 月]) -> ¥107,950.00 | E8: =SUBTOTAL(109,EmployeeActual[3 月]) -> ¥107,950.00 | F8: =SUBTOTAL(109,EmployeeActual[4 月]) -> ¥111,760.00 | G8: =SUBTOTAL(109,EmployeeActual[5 月]) -> ¥111,760.00 | H8: =SUBTOTAL(109,EmployeeActual[6 月]) -> ¥111,760.00 | I8: =SUBTOTAL(109,EmployeeActual[7 月]) -> ¥0.00 | J8: =SUBTOTAL(109,EmployeeActual[8 月]) -> ¥0.00 | K8: =SUBTOTAL(109,EmployeeActual[9 月]) -> ¥0.00 | L8: =SUBTOTAL(109,EmployeeActual[10 月]) -> ¥0.00 | M8: =SUBTOTAL(109,EmployeeActual[11 月]) -> ¥0.00 | N8: =SUBTOTAL(109,EmployeeActual[12 月]) -> ¥0.00 | O8: =SUBTOTAL(109,EmployeeActual[年]) -> ¥659,130.00
A10: 右のセルから始まるオフィスの実際の費用の表にオフィス賃貸料を入力します。次の指示はセル A21 に表示されます。 | B10: オフィス賃貸料 | C10: 1 月 | D10: 2 月 | E10: 3 月 | F10: 4 月 | G10: 5 月 | H10: 6 月 | I10: 7 月 | J10: 8 月 | K10: 9 月 | L10: 10 月 | M10: 11 月 | N10: 12 月 | O10: 年
B11: オフィスの賃貸 | C11: ¥9,800.00 | D11: ¥9,800.00 | E11: ¥9,800.00 | F11: ¥9,800.00 | G11: ¥9,800.00 | H11: ¥9,800.00 | O11: =SUM(C11:N11) -> ¥58,800.00
B12: ガス | C12: ¥4.00 | D12: ¥430.00 | E12: ¥385.00 | F12: ¥230.00 | G12: ¥87.00 | H12: ¥88.00 | O12: ¥1,224.00
B13: 電気 | C13: ¥288.00 | D13: ¥278.00 | E13: ¥268.00 | F13: ¥299.00 | G13: ¥306.00 | H13: ¥290.00 | O13: ¥1,729.00
B14: 水道 | C14: ¥35.00 | D14: ¥33.00 | E14: ¥34.00 | F14: ¥36.00 | G14: ¥34.00 | H14: ¥36.00 | O14: ¥208.00
B15: 電話 | C15: ¥224.00 | D15: ¥235.00 | E15: ¥265.00 | F15: ¥245.00 | G15: ¥245.00 | H15: ¥220.00 | O15: ¥1,434.00
B16: インターネット アクセス | C16: ¥180.00 | D16: ¥180.00 | E16: ¥180.00 | F16: ¥180.00 | G16: ¥180.00 | H16: ¥180.00 | O16: ¥1,080.00
B17: 事務用品 | C17: ¥256.00 | D17: ¥142.00 | E17: ¥160.00 | F17: ¥221.00 | G17: ¥256.00 | H17: ¥240.00 | O17: ¥1,275.00
B18: セキュリティ | C18: ¥600.00 | D18: ¥600.00 | E18: ¥600.00 | F18: ¥600.00 | G18: ¥600.00 | H18: ¥600.00 | O18: ¥3,600.00
B19: 小計 | C19: =SUBTOTAL(109,OfficeActual[1 月]) -> ¥11,387.00 | D19: =SUBTOTAL(109,OfficeActual[2 月]) -> ¥11,698.00 | E19: =SUBTOTAL(109,OfficeActual[3 月]) -> ¥11,692.00 | F19: =SUBTOTAL(109,OfficeActual[4 月]) -> ¥11,611.00 | G19: =SUBTOTAL(109,OfficeActual[5 月]) -> ¥11,508.00 | H19: =SUBTOTAL(109,OfficeActual[6 月]) -> ¥11,454.00 | I19: =SUBTOTAL(109,OfficeActual[7 月]) -> ¥0.00 | J19: =SUBTOTAL(109,OfficeActual[8 月]) -> ¥0.00 | K19: =SUBTOTAL(109,OfficeActual[9 月]) -> ¥0.00 | L19: =SUBTOTAL(109,OfficeActual[10 月]) -> ¥0.00 | M19: =SUBTOTAL(109,OfficeActual[11 月]) -> ¥0.00 | N19: =SUBTOTAL(109,OfficeActual[12 月]) -> ¥0.00 | O19: =SUBTOTAL(109,OfficeActual[年]) -> ¥69,350.00
A21: 右のセルから始まるマーケティングの実際の費用の表にマーケティング費用を入力します。次の指示はセル A30 に表示されます。 | B21: マーケティング費用 | C21: 1 月 | D21: 2 月 | E21: 3 月 | F21: 4 月 | G21: 5 月 | H21: 6 月 | I21: 7 月 | J21: 8 月 | K21: 9 月 | L21: 10 月 | M21: 11 月 | N21: 12 月 | O21: 年
B22: Web サイト ホスティング | C22: ¥500.00 | D22: ¥500.00 | E22: ¥500.00 | F22: ¥500.00 | G22: ¥500.00 | H22: ¥500.00 | O22: =SUM(C22:N22) -> ¥3,000.00
B23: Web サイトの更新 | C23: ¥200.00 | D23: ¥200.00 | E23: ¥200.00 | F23: ¥200.00 | G23: ¥200.00 | H23: ¥1,500.00 | O23: ¥2,500.00
B24: 資料の準備 | C24: ¥4,800.00 | D24: ¥0.00 | E24: ¥0.00 | F24: ¥5,500.00 | G24: ¥0.00 | H24: ¥0.00 | O24: ¥10,300.00
B25: 資料の印刷 | C25: ¥100.00 | D25: ¥500.00 | E25: ¥100.00 | F25: ¥100.00 | G25: ¥600.00 | H25: ¥180.00 | O25: ¥1,580.00
B26: マーケティング イベント | C26: ¥1,800.00 | D26: ¥2,200.00 | E26: ¥2,200.00 | F26: ¥4,700.00 | G26: ¥1,500.00 | H26: ¥2,300.00 | O26: ¥14,700.00
B27: その他の経費 | C27: ¥145.00 | D27: ¥156.00 | E27: ¥123.00 | F27: ¥223.00 | G27: ¥187.00 | H27: ¥245.00 | O27: ¥1,079.00
B28: 小計 | C28: =SUBTOTAL(109,MarketingActual[1 月]) -> ¥7,545.00 | D28: =SUBTOTAL(109,MarketingActual[2 月]) -> ¥3,556.00 | E28: =SUBTOTAL(109,MarketingActual[3 月]) -> ¥3,123.00 | F28: =SUBTOTAL(109,MarketingActual[4 月]) -> ¥11,223.00 | G28: =SUBTOTAL(109,MarketingActual[5 月]) -> ¥2,987.00 | H28: =SUBTOTAL(109,MarketingActual[6 月]) -> ¥4,725.00 | I28: =SUBTOTAL(109,MarketingActual[7 月]) -> ¥0.00 | J28: =SUBTOTAL(109,MarketingActual[8 月]) -> ¥0.00 | K28: =SUBTOTAL(109,MarketingActual[9 月]) -> ¥0.00 | L28: =SUBTOTAL(109,MarketingActual[10 月]) -> ¥0.00 | M28: =SUBTOTAL(109,MarketingActual[11 月]) -> ¥0.00 | N28: =SUBTOTAL(109,MarketingActual[12 月]) -> ¥0.00 | O28: =SUBTOTAL(109,MarketingActual[年]) -> ¥33,159.00
A30: 右のセルから始まるトレーニングおよびトレーニングの実際の費用の表にトレーニングまたは交通費を入力します。次の指示はセル A35 に表示されます。 | B30: トレーニング/交通費 | C30: 1 月 | D30: 2 月 | E30: 3 月 | F30: 4 月 | G30: 5 月 | H30: 6 月 | I30: 7 月 | J30: 8 月 | K30: 9 月 | L30: 10 月 | M30: 11 月 | N30: 12 月 | O30: 年
B31: トレーニング クラス | C31: ¥1,600.00 | D31: ¥2,400.00 | E31: ¥1,400.00 | F31: ¥1,600.00 | G31: ¥1,200.00 | H31: ¥2,800.00 | O31: =SUM(C31:N31) -> ¥11,000.00
B32: トレーニング関連の交通費 | C32: ¥1,200.00 | D32: ¥2,200.00 | E32: ¥1,400.00 | F32: ¥1,200.00 | G32: ¥800.00 | H32: ¥3,500.00 | O32: =SUM(C32:N32) -> ¥10,300.00
B33: 小計 | C33: =SUBTOTAL(109,TrainingAndTravelActual[1 月]) -> ¥2,800.00 | D33: =SUBTOTAL(109,TrainingAndTravelActual[2 月]) -> ¥4,600.00 | E33: =SUBTOTAL(109,TrainingAndTravelActual[3 月]) -> ¥2,800.00 | F33: =SUBTOTAL(109,TrainingAndTravelActual[4 月]) -> ¥2,800.00 | G33: =SUBTOTAL(109,TrainingAndTravelActual[5 月]) -> ¥2,000.00 | H33: =SUBTOTAL(109,TrainingAndTravelActual[6 月]) -> ¥6,300.00 | I33: =SUBTOTAL(109,TrainingAndTravelActual[7 月]) -> ¥0.00 | J33: =SUBTOTAL(109,TrainingAndTravelActual[8 月]) -> ¥0.00 | K33: =SUBTOTAL(109,TrainingAndTravelActual[9 月]) -> ¥0.00 | L33: =SUBTOTAL(109,TrainingAndTravelActual[10 月]) -> ¥0.00 | M33: =SUBTOTAL(109,TrainingAndTravelActual[11 月]) -> ¥0.00 | N33: =SUBTOTAL(109,TrainingAndTravelActual[12 月]) -> ¥0.00 | O33: =SUBTOTAL(109,TrainingAndTravelActual[年]) -> ¥21,300.00
A35: 実際の費用の集計は、右のセルから始まる実際の費用の合計の表で自動的に計算されます。 | B35: 合計の計画された費用 | C35: 1 月 | D35: 2 月 | E35: 3 月 | F35: 4 月 | G35: 5 月 | H35: 6 月 | I35: 7 月 | J35: 8 月 | K35: 9 月 | L35: 10 月 | M35: 11 月 | N35: 12 月 | O35: 年
B36: 月ごとの実際の費用 | C36: =TrainingAndTravelActual[[#Totals],[1 月]]+MarketingActual[[#Totals],[1 月]]+OfficeActual[[#Totals],[1 月]]+EmployeeActual[[#Totals],[1 月]] -> ¥129,682.00 | D36: =TrainingAndTravelActual[[#Totals],[2 月]]+MarketingActual[[#Totals],[2 月]]+OfficeActual[[#Totals],[2 月]]+EmployeeActual[[#Totals],[2 月]] -> ¥127,804.00 | E36: =TrainingAndTravelActual[[#Totals],[3 月]]+MarketingActual[[#Totals],[3 月]]+OfficeActual[[#Totals],[3 月]]+EmployeeActual[[#Totals],[3 月]] -> ¥125,565.00 | F36: =TrainingAndTravelActual[[#Totals],[4 月]]+MarketingActual[[#Totals],[4 月]]+OfficeActual[[#Totals],[4 月]]+EmployeeActual[[#Totals],[4 月]] -> ¥137,394.00 | G36: =TrainingAndTravelActual[[#Totals],[5 月]]+MarketingActual[[#Totals],[5 月]]+OfficeActual[[#Totals],[5 月]]+EmployeeActual[[#Totals],[5 月]] -> ¥128,255.00 | H36: =TrainingAndTravelActual[[#Totals],[6 月]]+MarketingActual[[#Totals],[6 月]]+OfficeActual[[#Totals],[6 月]]+EmployeeActual[[#Totals],[6 月]] -> ¥134,239.00 | I36: =TrainingAndTravelActual[[#Totals],[7 月]]+MarketingActual[[#Totals],[7 月]]+OfficeActual[[#Totals],[7 月]]+EmployeeActual[[#Totals],[7 月]] -> ¥0.00 | J36: =TrainingAndTravelActual[[#Totals],[8 月]]+MarketingActual[[#Totals],[8 月]]+OfficeActual[[#Totals],[8 月]]+EmployeeActual[[#Totals],[8 月]] -> ¥0.00 | K36: =TrainingAndTravelActual[[#Totals],[9 月]]+MarketingActual[[#Totals],[9 月]]+OfficeActual[[#Totals],[9 月]]+EmployeeActual[[#Totals],[9 月]] -> ¥0.00 | L36: =TrainingAndTravelActual[[#Totals],[10 月]]+MarketingActual[[#Totals],[10 月]]+OfficeActual[[#Totals],[10 月]]+EmployeeActual[[#Totals],[10 月]] -> ¥0.00 | M36: =TrainingAndTravelActual[[#Totals],[11 月]]+MarketingActual[[#Totals],[11 月]]+OfficeActual[[#Totals],[11 月]]+EmployeeActual[[#Totals],[11 月]] -> ¥0.00 | N36: =TrainingAndTravelActual[[#Totals],[12 月]]+MarketingActual[[#Totals],[12 月]]+OfficeActual[[#Totals],[12 月]]+EmployeeActual[[#Totals],[12 月]] -> ¥0.00 | O36: =TrainingAndTravelActual[[#Totals],[年]]+MarketingActual[[#Totals],[年]]+OfficeActual[[#Totals],[年]]+EmployeeActual[[#Totals],[年]] -> ¥782,939.00
B37: 実際の費用の集計 | C37: =SUM($C$36:C36) -> ¥129,682.00 | D37: =SUM($C$36:D36) -> ¥257,486.00 | E37: =SUM($C$36:E36) -> ¥383,051.00 | F37: =SUM($C$36:F36) -> ¥520,445.00 | G37: =SUM($C$36:G36) -> ¥648,700.00 | H37: =SUM($C$36:H36) -> ¥782,939.00 | I37: =SUM($C$36:I36) -> ¥782,939.00 | J37: =SUM($C$36:J36) -> ¥782,939.00 | K37: =SUM($C$36:K36) -> ¥782,939.00 | L37: =SUM($C$36:L36) -> ¥782,939.00 | M37: =SUM($C$36:M36) -> ¥782,939.00 | N37: =SUM($C$36:N36) -> ¥782,939.00

Sheet 経費差異
A1: 人件費、オフィス賃貸料、マーケティング費用、トレーニング費用、交通費の経費差異がこのワークシートのそれぞれの表で自動的に計算されます。このワークシートの役に立つ使用方法に関する説明がこの列のセルに表示されます。下向き矢印で開始します。
A2: 会社名は右のセルで自動的に更新されます。このワークシートのタイトルはセル K2 に表示されます。セル N2 にロゴを入力します。 | B2: =計画された費用!B2:D3 -> 会社名 | K2: =worksheet_title -> 詳細経費見積 | N2: このセルにはロゴのプレースホルダーが表示されます。
A3: ヒントはセル K3 に表示されます。 | K3: 網掛けされているセルが計算されます。
A4: 右のセルに経費差異のラベルが表示され、セル C4 から N4 に月が、O4 に年のラベルが表示されます。 | B4: 経費差異 | C4: 1 月 | D4: 2 月 | E4: 3 月 | F4: 4 月 | G4: 5 月 | H4: 6 月 | I4: 7 月 | J4: 8 月 | K4: 9 月 | L4: 10 月 | M4: 11 月 | N4: 12 月 | O4: 年
A5: 人件費の差異は、右のセルから始まる従業員の差異の表で自動的に計算されます。次の指示はセル A10 に表示されます。 | B5: 人件費 | C5: 1 月 | D5: 2 月 | E5: 3 月 | F5: 4 月 | G5: 5 月 | H5: 6 月 | I5: 7 月 | J5: 8 月 | K5: 9 月 | L5: 10 月 | M5: 11 月 | N5: 12 月 | O5: 年
B6: 給料 | C6: =INDEX(EmployeePlan[],MATCH(INDEX(EmployeeVariances[],ROW()-ROW(EmployeeVariances[[#Headers],[1 月]]),1),INDEX(EmployeePlan[],,1),0),MATCH(EmployeeVariances[[#Headers],[1 月]],EmployeePlan[#Headers],0))-INDEX(EmployeeActual[],MATCH(INDEX(EmployeeVariances[],ROW()-ROW(EmployeeVariances[[#Headers],[1 月]]),1),INDEX(EmployeePlan[],,1),0),MATCH(EmployeeVariances[[#Headers],[1 月]],EmployeeActual[#Headers],0)) -> ¥0.00 | D6: =INDEX(EmployeePlan[],MATCH(INDEX(EmployeeVariances[],ROW()-ROW(EmployeeVariances[[#Headers],[2 月]]),1),INDEX(EmployeePlan[],,1),0),MATCH(EmployeeVariances[[#Headers],[2 月]],EmployeePlan[#Headers],0))-INDEX(EmployeeActual[],MATCH(INDEX(EmployeeVariances[],ROW()-ROW(EmployeeVariances[[#Headers],[2 月]]),1),INDEX(EmployeePlan[],,1),0),MATCH(EmployeeVariances[[#Headers],[2 月]],EmployeeActual[#Headers],0)) -> ¥0.00 | E6: =INDEX(EmployeePlan[],MATCH(INDEX(EmployeeVariances[],ROW()-ROW(EmployeeVariances[[#Headers],[3 月]]),1),INDEX(EmployeePlan[],,1),0),MATCH(EmployeeVariances[[#Headers],[3 月]],EmployeePlan[#Headers],0))-INDEX(EmployeeActual[],MATCH(INDEX(EmployeeVariances[],ROW()-ROW(EmployeeVariances[[#Headers],[3 月]]),1),INDEX(EmployeePlan[],,1),0),MATCH(EmployeeVariances[[#Headers],[3 月]],EmployeeActual[#Headers],0)) -> ¥0.00 | F6: =INDEX(EmployeePlan[],MATCH(INDEX(EmployeeVariances[],ROW()-ROW(EmployeeVariances[[#Headers],[4 月]]),1),INDEX(EmployeePlan[],,1),0),MATCH(EmployeeVariances[[#Headers],[4 月]],EmployeePlan[#Headers],0))-INDEX(EmployeeActual[],MATCH(INDEX(EmployeeVariances[],ROW()-ROW(EmployeeVariances[[#Headers],[4 月]]),1),INDEX(EmployeePlan[],,1),0),MATCH(EmployeeVariances[[#Headers],[4 月]],EmployeeActual[#Headers],0)) -> (¥500.00) | G6: =INDEX(EmployeePlan[],MATCH(INDEX(EmployeeVariances[],ROW()-ROW(EmployeeVariances[[#Headers],[5 月]]),1),INDEX(EmployeePlan[],,1),0),MATCH(EmployeeVariances[[#Headers],[5 月]],EmployeePlan[#Headers],0))-INDEX(EmployeeActual[],MATCH(INDEX(EmployeeVariances[],ROW()-ROW(EmployeeVariances[[#Headers],[5 月]]),1),INDEX(EmployeePlan[],,1),0),MATCH(EmployeeVariances[[#Headers],[5 月]],EmployeeActual[#Headers],0)) -> (¥500.00) | H6: =INDEX(EmployeePlan[],MATCH(INDEX(EmployeeVariances[],ROW()-ROW(EmployeeVariances[[#Headers],[6 月]]),1),INDEX(EmployeePlan[],,1),0),MATCH(EmployeeVariances[[#Headers],[6 月]],EmployeePlan[#Headers],0))-INDEX(EmployeeActual[],MATCH(INDEX(EmployeeVariances[],ROW()-ROW(EmployeeVariances[[#Headers],[6 月]]),1),INDEX(EmployeePlan[],,1),0),MATCH(EmployeeVariances[[#Headers],[6 月]],EmployeeActual[#Headers],0)) -> (¥500.00) | I6: =INDEX(EmployeePlan[],MATCH(INDEX(EmployeeVariances[],ROW()-ROW(EmployeeVariances[[#Headers],[7 月]]),1),INDEX(EmployeePlan[],,1),0),MATCH(EmployeeVariances[[#Headers],[7 月]],EmployeePlan[#Headers],0))-INDEX(EmployeeActual[],MATCH(INDEX(EmployeeVariances[],ROW()-ROW(EmployeeVariances[[#Headers],[7 月]]),1),INDEX(EmployeePlan[],,1),0),MATCH(EmployeeVariances[[#Headers],[7 月]],EmployeeActual[#Headers],0)) -> ¥87,500.00 | J6: =INDEX(EmployeePlan[],MATCH(INDEX(EmployeeVariances[],ROW()-ROW(EmployeeVariances[[#Headers],[8 月]]),1),INDEX(EmployeePlan[],,1),0),MATCH(EmployeeVariances[[#Headers],[8 月]],EmployeePlan[#Headers],0))-INDEX(EmployeeActual[],MATCH(INDEX(EmployeeVariances[],ROW()-ROW(EmployeeVariances[[#Headers],[8 月]]),1),INDEX(EmployeePlan[],,1),0),MATCH(EmployeeVariances[[#Headers],[8 月]],EmployeeActual[#Headers],0)) -> ¥92,400.00 | K6: =INDEX(EmployeePlan[],MATCH(INDEX(EmployeeVariances[],ROW()-ROW(EmployeeVariances[[#Headers],[9 月]]),1),INDEX(EmployeePlan[],,1),0),MATCH(EmployeeVariances[[#Headers],[9 月]],EmployeePlan[#Headers],0))-INDEX(EmployeeActual[],MATCH(INDEX(EmployeeVariances[],ROW()-ROW(EmployeeVariances[[#Headers],[9 月]]),1),INDEX(EmployeePlan[],,1),0),MATCH(EmployeeVariances[[#Headers],[9 月]],EmployeeActual[#Headers],0)) -> ¥92,400.00 | L6: =INDEX(EmployeePlan[],MATCH(INDEX(EmployeeVariances[],ROW()-ROW(EmployeeVariances[[#Headers],[10 月]]),1),INDEX(EmployeePlan[],,1),0),MATCH(EmployeeVariances[[#Headers],[10 月]],EmployeePlan[#Headers],0))-INDEX(EmployeeActual[],MATCH(INDEX(EmployeeVariances[],ROW()-ROW(EmployeeVariances[[#Headers],[10 月]]),1),INDEX(EmployeePlan[],,1),0),MATCH(EmployeeVariances[[#Headers],[10 月]],EmployeeActual[#Headers],0)) -> ¥92,400.00 | M6: =INDEX(EmployeePlan[],MATCH(INDEX(EmployeeVariances[],ROW()-ROW(EmployeeVariances[[#Headers],[11 月]]),1),INDEX(EmployeePlan[],,1),0),MATCH(EmployeeVariances[[#Headers],[11 月]],EmployeePlan[#Headers],0))-INDEX(EmployeeActual[],MATCH(INDEX(EmployeeVariances[],ROW()-ROW(EmployeeVariances[[#Headers],[11 月]]),1),INDEX(EmployeePlan[],,1),0),MATCH(EmployeeVariances[[#Headers],[11 月]],EmployeeActual[#Headers],0)) -> ¥92,400.00 | N6: =INDEX(EmployeePlan[],MATCH(INDEX(EmployeeVariances[],ROW()-ROW(EmployeeVariances[[#Headers],[12 月]]),1),INDEX(EmployeePlan[],,1),0),MATCH(EmployeeVariances[[#Headers],[12 月]],EmployeePlan[#Headers],0))-INDEX(EmployeeActual[],MATCH(INDEX(EmployeeVariances[],ROW()-ROW(EmployeeVariances[[#Headers],[12 月]]),1),INDEX(EmployeePlan[],,1),0),MATCH(EmployeeVariances[[#Headers],[12 月]],EmployeeActual[#Headers],0)) -> ¥92,400.00 | O6: =SUM(EmployeeVariances[[#This Row],[1 月]:[12 月]]) -> ¥548,000.00
B7: 利益 | C7: =INDEX(EmployeePlan[],MATCH(INDEX(EmployeeVariances[],ROW()-ROW(EmployeeVariances[[#Headers],[1 月]]),1),INDEX(EmployeePlan[],,1),0),MATCH(EmployeeVariances[[#Headers],[1 月]],EmployeePlan[#Headers],0))-INDEX(EmployeeActual[],MATCH(INDEX(EmployeeVariances[],ROW()-ROW(EmployeeVariances[[#Headers],[1 月]]),1),INDEX(EmployeePlan[],,1),0),MATCH(EmployeeVariances[[#Headers],[1 月]],EmployeeActual[#Headers],0)) -> ¥0.00 | D7: =INDEX(EmployeePlan[],MATCH(INDEX(EmployeeVariances[],ROW()-ROW(EmployeeVariances[[#Headers],[2 月]]),1),INDEX(EmployeePlan[],,1),0),MATCH(EmployeeVariances[[#Headers],[2 月]],EmployeePlan[#Headers],0))-INDEX(EmployeeActual[],MATCH(INDEX(EmployeeVariances[],ROW()-ROW(EmployeeVariances[[#Headers],[2 月]]),1),INDEX(EmployeePlan[],,1),0),MATCH(EmployeeVariances[[#Headers],[2 月]],EmployeeActual[#Headers],0)) -> ¥0.00 | E7: =INDEX(EmployeePlan[],MATCH(INDEX(EmployeeVariances[],ROW()-ROW(EmployeeVariances[[#Headers],[3 月]]),1),INDEX(EmployeePlan[],,1),0),MATCH(EmployeeVariances[[#Headers],[3 月]],EmployeePlan[#Headers],0))-INDEX(EmployeeActual[],MATCH(INDEX(EmployeeVariances[],ROW()-ROW(EmployeeVariances[[#Headers],[3 月]]),1),INDEX(EmployeePlan[],,1),0),MATCH(EmployeeVariances[[#Headers],[3 月]],EmployeeActual[#Headers],0)) -> ¥0.00 | F7: =INDEX(EmployeePlan[],MATCH(INDEX(EmployeeVariances[],ROW()-ROW(EmployeeVariances[[#Headers],[4 月]]),1),INDEX(EmployeePlan[],,1),0),MATCH(EmployeeVariances[[#Headers],[4 月]],EmployeePlan[#Headers],0))-INDEX(EmployeeActual[],MATCH(INDEX(EmployeeVariances[],ROW()-ROW(EmployeeVariances[[#Headers],[4 月]]),1),INDEX(EmployeePlan[],,1),0),MATCH(EmployeeVariances[[#Headers],[4 月]],EmployeeActual[#Headers],0)) -> (¥135.00) | G7: =INDEX(EmployeePlan[],MATCH(INDEX(EmployeeVariances[],ROW()-ROW(EmployeeVariances[[#Headers],[5 月]]),1),INDEX(EmployeePlan[],,1),0),MATCH(EmployeeVariances[[#Headers],[5 月]],EmployeePlan[#Headers],0))-INDEX(EmployeeActual[],MATCH(INDEX(EmployeeVariances[],ROW()-ROW(EmployeeVariances[[#Headers],[5 月]]),1),INDEX(EmployeePlan[],,1),0),MATCH(EmployeeVariances[[#Headers],[5 月]],EmployeeActual[#Headers],0)) -> (¥135.00) | H7: =INDEX(EmployeePlan[],MATCH(INDEX(EmployeeVariances[],ROW()-ROW(EmployeeVariances[[#Headers],[6 月]]),1),INDEX(EmployeePlan[],,1),0),MATCH(EmployeeVariances[[#Headers],[6 月]],EmployeePlan[#Headers],0))-INDEX(EmployeeActual[],MATCH(INDEX(EmployeeVariances[],ROW()-ROW(EmployeeVariances[[#Headers],[6 月]]),1),INDEX(EmployeePlan[],,1),0),MATCH(EmployeeVariances[[#Headers],[6 月]],EmployeeActual[#Headers],0)) -> (¥135.00) | I7: =INDEX(EmployeePlan[],MATCH(INDEX(EmployeeVariances[],ROW()-ROW(EmployeeVariances[[#Headers],[7 月]]),1),INDEX(EmployeePlan[],,1),0),MATCH(EmployeeVariances[[#Headers],[7 月]],EmployeePlan[#Headers],0))-INDEX(EmployeeActual[],MATCH(INDEX(EmployeeVariances[],ROW()-ROW(EmployeeVariances[[#Headers],[7 月]]),1),INDEX(EmployeePlan[],,1),0),MATCH(EmployeeVariances[[#Headers],[7 月]],EmployeeActual[#Headers],0)) -> ¥23,625.00 | J7: =INDEX(EmployeePlan[],MATCH(INDEX(EmployeeVariances[],ROW()-ROW(EmployeeVariances[[#Headers],[8 月]]),1),INDEX(EmployeePlan[],,1),0),MATCH(EmployeeVariances[[#Headers],[8 月]],EmployeePlan[#Headers],0))-INDEX(EmployeeActual[],MATCH(INDEX(EmployeeVariances[],ROW()-ROW(EmployeeVariances[[#Headers],[8 月]]),1),INDEX(EmployeePlan[],,1),0),MATCH(EmployeeVariances[[#Headers],[8 月]],EmployeeActual[#Headers],0)) -> ¥24,948.00 | K7: =INDEX(EmployeePlan[],MATCH(INDEX(EmployeeVariances[],ROW()-ROW(EmployeeVariances[[#Headers],[9 月]]),1),INDEX(EmployeePlan[],,1),0),MATCH(EmployeeVariances[[#Headers],[9 月]],EmployeePlan[#Headers],0))-INDEX(EmployeeActual[],MATCH(INDEX(EmployeeVariances[],ROW()-ROW(EmployeeVariances[[#Headers],[9 月]]),1),INDEX(EmployeePlan[],,1),0),MATCH(EmployeeVariances[[#Headers],[9 月]],EmployeeActual[#Headers],0)) -> ¥24,948.00 | L7: =INDEX(EmployeePlan[],MATCH(INDEX(EmployeeVariances[],ROW()-ROW(EmployeeVariances[[#Headers],[10 月]]),1),INDEX(EmployeePlan[],,1),0),MATCH(EmployeeVariances[[#Headers],[10 月]],EmployeePlan[#Headers],0))-INDEX(EmployeeActual[],MATCH(INDEX(EmployeeVariances[],ROW()-ROW(EmployeeVariances[[#Headers],[10 月]]),1),INDEX(EmployeePlan[],,1),0),MATCH(EmployeeVariances[[#Headers],[10 月]],EmployeeActual[#Headers],0)) -> ¥24,948.00 | M7: =INDEX(EmployeePlan[],MATCH(INDEX(EmployeeVariances[],ROW()-ROW(EmployeeVariances[[#Headers],[11 月]]),1),INDEX(EmployeePlan[],,1),0),MATCH(EmployeeVariances[[#Headers],[11 月]],EmployeePlan[#Headers],0))-INDEX(EmployeeActual[],MATCH(INDEX(EmployeeVariances[],ROW()-ROW(EmployeeVariances[[#Headers],[11 月]]),1),INDEX(EmployeePlan[],,1),0),MATCH(EmployeeVariances[[#Headers],[11 月]],EmployeeActual[#Headers],0)) -> ¥24,948.00 | N7: =INDEX(EmployeePlan[],MATCH(INDEX(EmployeeVariances[],ROW()-ROW(EmployeeVariances[[#Headers],[12 月]]),1),INDEX(EmployeePlan[],,1),0),MATCH(EmployeeVariances[[#Headers],[12 月]],EmployeePlan[#Headers],0))-INDEX(EmployeeActual[],MATCH(INDEX(EmployeeVariances[],ROW()-ROW(EmployeeVariances[[#Headers],[12 月]]),1),INDEX(EmployeePlan[],,1),0),MATCH(EmployeeVariances[[#Headers],[12 月]],EmployeeActual[#Headers],0)) -> ¥24,948.00 | O7: =SUM(EmployeeVariances[[#This Row],[1 月]:[12 月]]) -> ¥147,960.00
B8: 小計 | C8: =SUBTOTAL(109,EmployeeVariances[1 月]) -> ¥0.00 | D8: =SUBTOTAL(109,EmployeeVariances[2 月]) -> ¥0.00 | E8: =SUBTOTAL(109,EmployeeVariances[3 月]) -> ¥0.00 | F8: =SUBTOTAL(109,EmployeeVariances[4 月]) -> (¥635.00) | G8: =SUBTOTAL(109,EmployeeVariances[5 月]) -> (¥635.00) | H8: =SUBTOTAL(109,EmployeeVariances[6 月]) -> (¥635.00) | I8: =SUBTOTAL(109,EmployeeVariances[7 月]) -> ¥111,125.00 | J8: =SUBTOTAL(109,EmployeeVariances[8 月]) -> ¥117,348.00 | K8: =SUBTOTAL(109,EmployeeVariances[9 月]) -> ¥117,348.00 | L8: =SUBTOTAL(109,EmployeeVariances[10 月]) -> ¥117,348.00 | M8: =SUBTOTAL(109,EmployeeVariances[11 月]) -> ¥117,348.00 | N8: =SUBTOTAL(109,EmployeeVariances[12 月]) -> ¥117,348.00 | O8: =SUBTOTAL(109,EmployeeVariances[年]) -> ¥695,960.00
A10: オフィス賃貸料の差異は、右のセルから始まるオフィスの差異の表で自動的に計算されます。次の指示はセル A21 に表示されます。 | B10: オフィス賃貸料 | C10: 1 月 | D10: 2 月 | E10: 3 月 | F10: 4 月 | G10: 5 月 | H10: 6 月 | I10: 7 月 | J10: 8 月 | K10: 9 月 | L10: 10 月 | M10: 11 月 | N10: 12 月 | O10: 年
B11: オフィスの賃貸 | C11: =INDEX(OfficePlan[],MATCH(INDEX(OfficeVariances[],ROW()-ROW(OfficeVariances[[#Headers],[1 月]]),1),INDEX(OfficePlan[],,1),0),MATCH(OfficeVariances[[#Headers],[1 月]],OfficePlan[#Headers],0))-INDEX(OfficeActual[],MATCH(INDEX(OfficeVariances[],ROW()-ROW(OfficeVariances[[#Headers],[1 月]]),1),INDEX(OfficePlan[],,1),0),MATCH(OfficeVariances[[#Headers],[1 月]],OfficeActual[#Headers],0)) -> ¥0.00 | D11: =INDEX(OfficePlan[],MATCH(INDEX(OfficeVariances[],ROW()-ROW(OfficeVariances[[#Headers],[2 月]]),1),INDEX(OfficePlan[],,1),0),MATCH(OfficeVariances[[#Headers],[2 月]],OfficePlan[#Headers],0))-INDEX(OfficeActual[],MATCH(INDEX(OfficeVariances[],ROW()-ROW(OfficeVariances[[#Headers],[2 月]]),1),INDEX(OfficePlan[],,1),0),MATCH(OfficeVariances[[#Headers],[2 月]],OfficeActual[#Headers],0)) -> ¥0.00 | E11: =INDEX(OfficePlan[],MATCH(INDEX(OfficeVariances[],ROW()-ROW(OfficeVariances[[#Headers],[3 月]]),1),INDEX(OfficePlan[],,1),0),MATCH(OfficeVariances[[#Headers],[3 月]],OfficePlan[#Headers],0))-INDEX(OfficeActual[],MATCH(INDEX(OfficeVariances[],ROW()-ROW(OfficeVariances[[#Headers],[3 月]]),1),INDEX(OfficePlan[],,1),0),MATCH(OfficeVariances[[#Headers],[3 月]],OfficeActual[#Headers],0)) -> ¥0.00 | F11: =INDEX(OfficePlan[],MATCH(INDEX(OfficeVariances[],ROW()-ROW(OfficeVariances[[#Headers],[4 月]]),1),INDEX(OfficePlan[],,1),0),MATCH(OfficeVariances[[#Headers],[4 月]],OfficePlan[#Headers],0))-INDEX(OfficeActual[],MATCH(INDEX(OfficeVariances[],ROW()-ROW(OfficeVariances[[#Headers],[4 月]]),1),INDEX(OfficePlan[],,1),0),MATCH(OfficeVariances[[#Headers],[4 月]],OfficeActual[#Headers],0)) -> ¥0.00 | G11: =INDEX(OfficePlan[],MATCH(INDEX(OfficeVariances[],ROW()-ROW(OfficeVariances[[#Headers],[5 月]]),1),INDEX(OfficePlan[],,1),0),MATCH(OfficeVariances[[#Headers],[5 月]],OfficePlan[#Headers],0))-INDEX(OfficeActual[],MATCH(INDEX(OfficeVariances[],ROW()-ROW(OfficeVariances[[#Headers],[5 月]]),1),INDEX(OfficePlan[],,1),0),MATCH(OfficeVariances[[#Headers],[5 月]],OfficeActual[#Headers],0)) -> ¥0.00 | H11: =INDEX(OfficePlan[],MATCH(INDEX(OfficeVariances[],ROW()-ROW(OfficeVariances[[#Headers],[6 月]]),1),INDEX(OfficePlan[],,1),0),MATCH(OfficeVariances[[#Headers],[6 月]],OfficePlan[#Headers],0))-INDEX(OfficeActual[],MATCH(INDEX(OfficeVariances[],ROW()-ROW(OfficeVariances[[#Headers],[6 月]]),1),INDEX(OfficePlan[],,1),0),MATCH(OfficeVariances[[#Headers],[6 月]],OfficeActual[#Headers],0)) -> ¥0.00 | I11: =INDEX(OfficePlan[],MATCH(INDEX(OfficeVariances[],ROW()-ROW(OfficeVariances[[#Headers],[7 月]]),1),INDEX(OfficePlan[],,1),0),MATCH(OfficeVariances[[#Headers],[7 月]],OfficePlan[#Headers],0))-INDEX(OfficeActual[],MATCH(INDEX(OfficeVariances[],ROW()-ROW(OfficeVariances[[#Headers],[7 月]]),1),INDEX(OfficePlan[],,1),0),MATCH(OfficeVariances[[#Headers],[7 月]],OfficeActual[#Headers],0)) -> ¥9,800.00 | J11: =INDEX(OfficePlan[],MATCH(INDEX(OfficeVariances[],ROW()-ROW(OfficeVariances[[#Headers],[8 月]]),1),INDEX(OfficePlan[],,1),0),MATCH(OfficeVariances[[#Headers],[8 月]],OfficePlan[#Headers],0))-INDEX(OfficeActual[],MATCH(INDEX(OfficeVariances[],ROW()-ROW(OfficeVariances[[#Headers],[8 月]]),1),INDEX(OfficePlan[],,1),0),MATCH(OfficeVariances[[#Headers],[8 月]],OfficeActual[#Headers],0)) -> ¥9,800.00 | K11: =INDEX(OfficePlan[],MATCH(INDEX(OfficeVariances[],ROW()-ROW(OfficeVariances[[#Headers],[9 月]]),1),INDEX(OfficePlan[],,1),0),MATCH(OfficeVariances[[#Headers],[9 月]],OfficePlan[#Headers],0))-INDEX(OfficeActual[],MATCH(INDEX(OfficeVariances[],ROW()-ROW(OfficeVariances[[#Headers],[9 月]]),1),INDEX(OfficePlan[],,1),0),MATCH(OfficeVariances[[#Headers],[9 月]],OfficeActual[#Headers],0)) -> ¥9,800.00 | L11: =INDEX(OfficePlan[],MATCH(INDEX(OfficeVariances[],ROW()-ROW(OfficeVariances[[#Headers],[10 月]]),1),INDEX(OfficePlan[],,1),0),MATCH(OfficeVariances[[#Headers],[10 月]],OfficePlan[#Headers],0))-INDEX(OfficeActual[],MATCH(INDEX(OfficeVariances[],ROW()-ROW(OfficeVariances[[#Headers],[10 月]]),1),INDEX(OfficePlan[],,1),0),MATCH(OfficeVariances[[#Headers],[10 月]],OfficeActual[#Headers],0)) -> ¥9,800.00 | M11: =INDEX(OfficePlan[],MATCH(INDEX(OfficeVariances[],ROW()-ROW(OfficeVariances[[#Headers],[11 月]]),1),INDEX(OfficePlan[],,1),0),MATCH(OfficeVariances[[#Headers],[11 月]],OfficePlan[#Headers],0))-INDEX(OfficeActual[],MATCH(INDEX(OfficeVariances[],ROW()-ROW(OfficeVariances[[#Headers],[11 月]]),1),INDEX(OfficePlan[],,1),0),MATCH(OfficeVariances[[#Headers],[11 月]],OfficeActual[#Headers],0)) -> ¥9,800.00 | N11: =INDEX(OfficePlan[],MATCH(INDEX(OfficeVariances[],ROW()-ROW(OfficeVariances[[#Headers],[12 月]]),1),INDEX(OfficePlan[],,1),0),MATCH(OfficeVariances[[#Headers],[12 月]],OfficePlan[#Headers],0))-INDEX(OfficeActual[],MATCH(INDEX(OfficeVariances[],ROW()-ROW(OfficeVariances[[#Headers],[12 月]]),1),INDEX(OfficePlan[],,1),0),MATCH(OfficeVariances[[#Headers],[12 月]],OfficeActual[#Headers],0)) -> ¥9,800.00 | O11: =SUM(OfficeVariances[[#This Row],[1 月]:[12 月]]) -> ¥58,800.00
B12: ガス | C12: =INDEX(OfficePlan[],MATCH(INDEX(OfficeVariances[],ROW()-ROW(OfficeVariances[[#Headers],[1 月]]),1),INDEX(OfficePlan[],,1),0),MATCH(OfficeVariances[[#Headers],[1 月]],OfficePlan[#Headers],0))-INDEX(OfficeActual[],MATCH(INDEX(OfficeVariances[],ROW()-ROW(OfficeVariances[[#Headers],[1 月]]),1),INDEX(OfficePlan[],,1),0),MATCH(OfficeVariances[[#Headers],[1 月]],OfficeActual[#Headers],0)) -> (¥4.00) | D12: =INDEX(OfficePlan[],MATCH(INDEX(OfficeVariances[],ROW()-ROW(OfficeVariances[[#Headers],[2 月]]),1),INDEX(OfficePlan[],,1),0),MATCH(OfficeVariances[[#Headers],[2 月]],OfficePlan[#Headers],0))-INDEX(OfficeActual[],MATCH(INDEX(OfficeVariances[],ROW()-ROW(OfficeVariances[[#Headers],[2 月]]),1),INDEX(OfficePlan[],,1),0),MATCH(OfficeVariances[[#Headers],[2 月]],OfficeActual[#Headers],0)) -> (¥30.00) | E12: =INDEX(OfficePlan[],MATCH(INDEX(OfficeVariances[],ROW()-ROW(OfficeVariances[[#Headers],[3 月]]),1),INDEX(OfficePlan[],,1),0),MATCH(OfficeVariances[[#Headers],[3 月]],OfficePlan[#Headers],0))-INDEX(OfficeActual[],MATCH(INDEX(OfficeVariances[],ROW()-ROW(OfficeVariances[[#Headers],[3 月]]),1),INDEX(OfficePlan[],,1),0),MATCH(OfficeVariances[[#Headers],[3 月]],OfficeActual[#Headers],0)) -> ¥15.00 | F12: =INDEX(OfficePlan[],MATCH(INDEX(OfficeVariances[],ROW()-ROW(OfficeVariances[[#Headers],[4 月]]),1),INDEX(OfficePlan[],,1),0),MATCH(OfficeVariances[[#Headers],[4 月]],OfficePlan[#Headers],0))-INDEX(OfficeActual[],MATCH(INDEX(OfficeVariances[],ROW()-ROW(OfficeVariances[[#Headers],[4 月]]),1),INDEX(OfficePlan[],,1),0),MATCH(OfficeVariances[[#Headers],[4 月]],OfficeActual[#Headers],0)) -> (¥130.00) | G12: =INDEX(OfficePlan[],MATCH(INDEX(OfficeVariances[],ROW()-ROW(OfficeVariances[[#Headers],[5 月]]),1),INDEX(OfficePlan[],,1),0),MATCH(OfficeVariances[[#Headers],[5 月]],OfficePlan[#Headers],0))-INDEX(OfficeActual[],MATCH(INDEX(OfficeVariances[],ROW()-ROW(OfficeVariances[[#Headers],[5 月]]),1),INDEX(OfficePlan[],,1),0),MATCH(OfficeVariances[[#Headers],[5 月]],OfficeActual[#Headers],0)) -> ¥13.00 | H12: =INDEX(OfficePlan[],MATCH(INDEX(OfficeVariances[],ROW()-ROW(OfficeVariances[[#Headers],[6 月]]),1),INDEX(OfficePlan[],,1),0),MATCH(OfficeVariances[[#Headers],[6 月]],OfficePlan[#Headers],0))-INDEX(OfficeActual[],MATCH(INDEX(OfficeVariances[],ROW()-ROW(OfficeVariances[[#Headers],[6 月]]),1),INDEX(OfficePlan[],,1),0),MATCH(OfficeVariances[[#Headers],[6 月]],OfficeActual[#Headers],0)) -> ¥12.00 | I12: =INDEX(OfficePlan[],MATCH(INDEX(OfficeVariances[],ROW()-ROW(OfficeVariances[[#Headers],[7 月]]),1),INDEX(OfficePlan[],,1),0),MATCH(OfficeVariances[[#Headers],[7 月]],OfficePlan[#Headers],0))-INDEX(OfficeActual[],MATCH(INDEX(OfficeVariances[],ROW()-ROW(OfficeVariances[[#Headers],[7 月]]),1),INDEX(OfficePlan[],,1),0),MATCH(OfficeVariances[[#Headers],[7 月]],OfficeActual[#Headers],0)) -> ¥100.00 | J12: =INDEX(OfficePlan[],MATCH(INDEX(OfficeVariances[],ROW()-ROW(OfficeVariances[[#Headers],[8 月]]),1),INDEX(OfficePlan[],,1),0),MATCH(OfficeVariances[[#Headers],[8 月]],OfficePlan[#Headers],0))-INDEX(OfficeActual[],MATCH(INDEX(OfficeVariances[],ROW()-ROW(OfficeVariances[[#Headers],[8 月]]),1),INDEX(OfficePlan[],,1),0),MATCH(OfficeVariances[[#Headers],[8 月]],OfficeActual[#Headers],0)) -> ¥100.00 | K12: =INDEX(OfficePlan[],MATCH(INDEX(OfficeVariances[],ROW()-ROW(OfficeVariances[[#Headers],[9 月]]),1),INDEX(OfficePlan[],,1),0),MATCH(OfficeVariances[[#Headers],[9 月]],OfficePlan[#Headers],0))-INDEX(OfficeActual[],MATCH(INDEX(OfficeVariances[],ROW()-ROW(OfficeVariances[[#Headers],[9 月]]),1),INDEX(OfficePlan[],,1),0),MATCH(OfficeVariances[[#Headers],[9 月]],OfficeActual[#Headers],0)) -> ¥100.00 | L12: =INDEX(OfficePlan[],MATCH(INDEX(OfficeVariances[],ROW()-ROW(OfficeVariances[[#Headers],[10 月]]),1),INDEX(OfficePlan[],,1),0),MATCH(OfficeVariances[[#Headers],[10 月]],OfficePlan[#Headers],0))-INDEX(OfficeActual[],MATCH(INDEX(OfficeVariances[],ROW()-ROW(OfficeVariances[[#Headers],[10 月]]),1),INDEX(OfficePlan[],,1),0),MATCH(OfficeVariances[[#Headers],[10 月]],OfficeActual[#Headers],0)) -> ¥100.00 | M12: =INDEX(OfficePlan[],MATCH(INDEX(OfficeVariances[],ROW()-ROW(OfficeVariances[[#Headers],[11 月]]),1),INDEX(OfficePlan[],,1),0),MATCH(OfficeVariances[[#Headers],[11 月]],OfficePlan[#Headers],0))-INDEX(OfficeActual[],MATCH(INDEX(OfficeVariances[],ROW()-ROW(OfficeVariances[[#Headers],[11 月]]),1),INDEX(OfficePlan[],,1),0),MATCH(OfficeVariances[[#Headers],[11 月]],OfficeActual[#Headers],0)) -> ¥400.00 | N12: =INDEX(OfficePlan[],MATCH(INDEX(OfficeVariances[],ROW()-ROW(OfficeVariances[[#Headers],[12 月]]),1),INDEX(OfficePlan[],,1),0),MATCH(OfficeVariances[[#Headers],[12 月]],OfficePlan[#Headers],0))-INDEX(OfficeActual[],MATCH(INDEX(OfficeVariances[],ROW()-ROW(OfficeVariances[[#Headers],[12 月]]),1),INDEX(OfficePlan[],,1),0),MATCH(OfficeVariances[[#Headers],[12 月]],OfficeActual[#Headers],0)) -> ¥400.00 | O12: =SUM(OfficeVariances[[#This Row],[1 月]:[12 月]]) -> ¥1,076.00
B13: 電気 | C13: =INDEX(OfficePlan[],MATCH(INDEX(OfficeVariances[],ROW()-ROW(OfficeVariances[[#Headers],[1 月]]),1),INDEX(OfficePlan[],,1),0),MATCH(OfficeVariances[[#Headers],[1 月]],OfficePlan[#Headers],0))-INDEX(OfficeActual[],MATCH(INDEX(OfficeVariances[],ROW()-ROW(OfficeVariances[[#Headers],[1 月]]),1),INDEX(OfficePlan[],,1),0),MATCH(OfficeVariances[[#Headers],[1 月]],OfficeActual[#Headers],0)) -> ¥12.00 | D13: =INDEX(OfficePlan[],MATCH(INDEX(OfficeVariances[],ROW()-ROW(OfficeVariances[[#Headers],[2 月]]),1),INDEX(OfficePlan[],,1),0),MATCH(OfficeVariances[[#Headers],[2 月]],OfficePlan[#Headers],0))-INDEX(OfficeActual[],MATCH(INDEX(OfficeVariances[],ROW()-ROW(OfficeVariances[[#Headers],[2 月]]),1),INDEX(OfficePlan[],,1),0),MATCH(OfficeVariances[[#Headers],[2 月]],OfficeActual[#Headers],0)) -> ¥22.00 | E13: =INDEX(OfficePlan[],MATCH(INDEX(OfficeVariances[],ROW()-ROW(OfficeVariances[[#Headers],[3 月]]),1),INDEX(OfficePlan[],,1),0),MATCH(OfficeVariances[[#Headers],[3 月]],OfficePlan[#Headers],0))-INDEX(OfficeActual[],MATCH(INDEX(OfficeVariances[],ROW()-ROW(OfficeVariances[[#Headers],[3 月]]),1),INDEX(OfficePlan[],,1),0),MATCH(OfficeVariances[[#Headers],[3 月]],OfficeActual[#Headers],0)) -> ¥32.00 | F13: =INDEX(OfficePlan[],MATCH(INDEX(OfficeVariances[],ROW()-ROW(OfficeVariances[[#Headers],[4 月]]),1),INDEX(OfficePlan[],,1),0),MATCH(OfficeVariances[[#Headers],[4 月]],OfficePlan[#Headers],0))-INDEX(OfficeActual[],MATCH(INDEX(OfficeVariances[],ROW()-ROW(OfficeVariances[[#Headers],[4 月]]),1),INDEX(OfficePlan[],,1),0),MATCH(OfficeVariances[[#Headers],[4 月]],OfficeActual[#Headers],0)) -> ¥1.00 | G13: =INDEX(OfficePlan[],MATCH(INDEX(OfficeVariances[],ROW()-ROW(OfficeVariances[[#Headers],[5 月]]),1),INDEX(OfficePlan[],,1),0),MATCH(OfficeVariances[[#Headers],[5 月]],OfficePlan[#Headers],0))-INDEX(OfficeActual[],MATCH(INDEX(OfficeVariances[],ROW()-ROW(OfficeVariances[[#Headers],[5 月]]),1),INDEX(OfficePlan[],,1),0),MATCH(OfficeVariances[[#Headers],[5 月]],OfficeActual[#Headers],0)) -> (¥6.00) | H13: =INDEX(OfficePlan[],MATCH(INDEX(OfficeVariances[],ROW()-ROW(OfficeVariances[[#Headers],[6 月]]),1),INDEX(OfficePlan[],,1),0),MATCH(OfficeVariances[[#Headers],[6 月]],OfficePlan[#Headers],0))-INDEX(OfficeActual[],MATCH(INDEX(OfficeVariances[],ROW()-ROW(OfficeVariances[[#Headers],[6 月]]),1),INDEX(OfficePlan[],,1),0),MATCH(OfficeVariances[[#Headers],[6 月]],OfficeActual[#Headers],0)) -> ¥10.00 | I13: =INDEX(OfficePlan[],MATCH(INDEX(OfficeVariances[],ROW()-ROW(OfficeVariances[[#Headers],[7 月]]),1),INDEX(OfficePlan[],,1),0),MATCH(OfficeVariances[[#Headers],[7 月]],OfficePlan[#Headers],0))-INDEX(OfficeActual[],MATCH(INDEX(OfficeVariances[],ROW()-ROW(OfficeVariances[[#Headers],[7 月]]),1),INDEX(OfficePlan[],,1),0),MATCH(OfficeVariances[[#Headers],[7 月]],OfficeActual[#Headers],0)) -> ¥300.00 | J13: =INDEX(OfficePlan[],MATCH(INDEX(OfficeVariances[],ROW()-ROW(OfficeVariances[[#Headers],[8 月]]),1),INDEX(OfficePlan[],,1),0),MATCH(OfficeVariances[[#Headers],[8 月]],OfficePlan[#Headers],0))-INDEX(OfficeActual[],MATCH(INDEX(OfficeVariances[],ROW()-ROW(OfficeVariances[[#Headers],[8 月]]),1),INDEX(OfficePlan[],,1),0),MATCH(OfficeVariances[[#Headers],[8 月]],OfficeActual[#Headers],0)) -> ¥300.00 | K13: =INDEX(OfficePlan[],MATCH(INDEX(OfficeVariances[],ROW()-ROW(OfficeVariances[[#Headers],[9 月]]),1),INDEX(OfficePlan[],,1),0),MATCH(OfficeVariances[[#Headers],[9 月]],OfficePlan[#Headers],0))-INDEX(OfficeActual[],MATCH(INDEX(OfficeVariances[],ROW()-ROW(OfficeVariances[[#Headers],[9 月]]),1),INDEX(OfficePlan[],,1),0),MATCH(OfficeVariances[[#Headers],[9 月]],OfficeActual[#Headers],0)) -> ¥300.00 | L13: =INDEX(OfficePlan[],MATCH(INDEX(OfficeVariances[],ROW()-ROW(OfficeVariances[[#Headers],[10 月]]),1),INDEX(OfficePlan[],,1),0),MATCH(OfficeVariances[[#Headers],[10 月]],OfficePlan[#Headers],0))-INDEX(OfficeActual[],MATCH(INDEX(OfficeVariances[],ROW()-ROW(OfficeVariances[[#Headers],[10 月]]),1),INDEX(OfficePlan[],,1),0),MATCH(OfficeVariances[[#Headers],[10 月]],OfficeActual[#Headers],0)) -> ¥300.00 | M13: =INDEX(OfficePlan[],MATCH(INDEX(OfficeVariances[],ROW()-ROW(OfficeVariances[[#Headers],[11 月]]),1),INDEX(OfficePlan[],,1),0),MATCH(OfficeVariances[[#Headers],[11 月]],OfficePlan[#Headers],0))-INDEX(OfficeActual[],MATCH(INDEX(OfficeVariances[],ROW()-ROW(OfficeVariances[[#Headers],[11 月]]),1),INDEX(OfficePlan[],,1),0),MATCH(OfficeVariances[[#Headers],[11 月]],OfficeActual[#Headers],0)) -> ¥300.00 | N13: =INDEX(OfficePlan[],MATCH(INDEX(OfficeVariances[],ROW()-ROW(OfficeVariances[[#Headers],[12 月]]),1),INDEX(OfficePlan[],,1),0),MATCH(OfficeVariances[[#Headers],[12 月]],OfficePlan[#Headers],0))-INDEX(OfficeActual[],MATCH(INDEX(OfficeVariances[],ROW()-ROW(OfficeVariances[[#Headers],[12 月]]),1),INDEX(OfficePlan[],,1),0),MATCH(OfficeVariances[[#Headers],[12 月]],OfficeActual[#Headers],0)) -> ¥300.00 | O13: =SUM(OfficeVariances[[#This Row],[1 月]:[12 月]]) -> ¥1,871.00
B14: 水道 | C14: =INDEX(OfficePlan[],MATCH(INDEX(OfficeVariances[],ROW()-ROW(OfficeVariances[[#Headers],[1 月]]),1),INDEX(OfficePlan[],,1),0),MATCH(OfficeVariances[[#Headers],[1 月]],OfficePlan[#Headers],0))-INDEX(OfficeActual[],MATCH(INDEX(OfficeVariances[],ROW()-ROW(OfficeVariances[[#Headers],[1 月]]),1),INDEX(OfficePlan[],,1),0),MATCH(OfficeVariances[[#Headers],[1 月]],OfficeActual[#Headers],0)) -> ¥5.00 | D14: =INDEX(OfficePlan[],MATCH(INDEX(OfficeVariances[],ROW()-ROW(OfficeVariances[[#Headers],[2 月]]),1),INDEX(OfficePlan[],,1),0),MATCH(OfficeVariances[[#Headers],[2 月]],OfficePlan[#Headers],0))-INDEX(OfficeActual[],MATCH(INDEX(OfficeVariances[],ROW()-ROW(OfficeVariances[[#Headers],[2 月]]),1),INDEX(OfficePlan[],,1),0),MATCH(OfficeVariances[[#Headers],[2 月]],OfficeActual[#Headers],0)) -> ¥7.00 | E14: =INDEX(OfficePlan[],MATCH(INDEX(OfficeVariances[],ROW()-ROW(OfficeVariances[[#Headers],[3 月]]),1),INDEX(OfficePlan[],,1),0),MATCH(OfficeVariances[[#Headers],[3 月]],OfficePlan[#Headers],0))-INDEX(OfficeActual[],MATCH(INDEX(OfficeVariances[],ROW()-ROW(OfficeVariances[[#Headers],[3 月]]),1),INDEX(OfficePlan[],,1),0),MATCH(OfficeVariances[[#Headers],[3 月]],OfficeActual[#Headers],0)) -> ¥6.00 | F14: =INDEX(OfficePlan[],MATCH(INDEX(OfficeVariances[],ROW()-ROW(OfficeVariances[[#Headers],[4 月]]),1),INDEX(OfficePlan[],,1),0),MATCH(OfficeVariances[[#Headers],[4 月]],OfficePlan[#Headers],0))-INDEX(OfficeActual[],MATCH(INDEX(OfficeVariances[],ROW()-ROW(OfficeVariances[[#Headers],[4 月]]),1),INDEX(OfficePlan[],,1),0),MATCH(OfficeVariances[[#Headers],[4 月]],OfficeActual[#Headers],0)) -> ¥4.00 | G14: =INDEX(OfficePlan[],MATCH(INDEX(OfficeVariances[],ROW()-ROW(OfficeVariances[[#Headers],[5 月]]),1),INDEX(OfficePlan[],,1),0),MATCH(OfficeVariances[[#Headers],[5 月]],OfficePlan[#Headers],0))-INDEX(OfficeActual[],MATCH(INDEX(OfficeVariances[],ROW()-ROW(OfficeVariances[[#Headers],[5 月]]),1),INDEX(OfficePlan[],,1),0),MATCH(OfficeVariances[[#Headers],[5 月]],OfficeActual[#Headers],0)) -> ¥6.00 | H14: =INDEX(OfficePlan[],MATCH(INDEX(OfficeVariances[],ROW()-ROW(OfficeVariances[[#Headers],[6 月]]),1),INDEX(OfficePlan[],,1),0),MATCH(OfficeVariances[[#Headers],[6 月]],OfficePlan[#Headers],0))-INDEX(OfficeActual[],MATCH(INDEX(OfficeVariances[],ROW()-ROW(OfficeVariances[[#Headers],[6 月]]),1),INDEX(OfficePlan[],,1),0),MATCH(OfficeVariances[[#Headers],[6 月]],OfficeActual[#Headers],0)) -> ¥4.00 | I14: =INDEX(OfficePlan[],MATCH(INDEX(OfficeVariances[],ROW()-ROW(OfficeVariances[[#Headers],[7 月]]),1),INDEX(OfficePlan[],,1),0),MATCH(OfficeVariances[[#Headers],[7 月]],OfficePlan[#Headers],0))-INDEX(OfficeActual[],MATCH(INDEX(OfficeVariances[],ROW()-ROW(OfficeVariances[[#Headers],[7 月]]),1),INDEX(OfficePlan[],,1),0),MATCH(OfficeVariances[[#Headers],[7 月]],OfficeActual[#Headers],0)) -> ¥40.00 | J14: =INDEX(OfficePlan[],MATCH(INDEX(OfficeVariances[],ROW()-ROW(OfficeVariances[[#Headers],[8 月]]),1),INDEX(OfficePlan[],,1),0),MATCH(OfficeVariances[[#Headers],[8 月]],OfficePlan[#Headers],0))-INDEX(OfficeActual[],MATCH(INDEX(OfficeVariances[],ROW()-ROW(OfficeVariances[[#Headers],[8 月]]),1),INDEX(OfficePlan[],,1),0),MATCH(OfficeVariances[[#Headers],[8 月]],OfficeActual[#Headers],0)) -> ¥40.00 | K14: =INDEX(OfficePlan[],MATCH(INDEX(OfficeVariances[],ROW()-ROW(OfficeVariances[[#Headers],[9 月]]),1),INDEX(OfficePlan[],,1),0),MATCH(OfficeVariances[[#Headers],[9 月]],OfficePlan[#Headers],0))-INDEX(OfficeActual[],MATCH(INDEX(OfficeVariances[],ROW()-ROW(OfficeVariances[[#Headers],[9 月]]),1),INDEX(OfficePlan[],,1),0),MATCH(OfficeVariances[[#Headers],[9 月]],OfficeActual[#Headers],0)) -> ¥40.00 | L14: =INDEX(OfficePlan[],MATCH(INDEX(OfficeVariances[],ROW()-ROW(OfficeVariances[[#Headers],[10 月]]),1),INDEX(OfficePlan[],,1),0),MATCH(OfficeVariances[[#Headers],[10 月]],OfficePlan[#Headers],0))-INDEX(OfficeActual[],MATCH(INDEX(OfficeVariances[],ROW()-ROW(OfficeVariances[[#Headers],[10 月]]),1),INDEX(OfficePlan[],,1),0),MATCH(OfficeVariances[[#Headers],[10 月]],OfficeActual[#Headers],0)) -> ¥40.00 | M14: =INDEX(OfficePlan[],MATCH(INDEX(OfficeVariances[],ROW()-ROW(OfficeVariances[[#Headers],[11 月]]),1),INDEX(OfficePlan[],,1),0),MATCH(OfficeVariances[[#Headers],[11 月]],OfficePlan[#Headers],0))-INDEX(OfficeActual[],MATCH(INDEX(OfficeVariances[],ROW()-ROW(OfficeVariances[[#Headers],[11 月]]),1),INDEX(OfficePlan[],,1),0),MATCH(OfficeVariances[[#Headers],[11 月]],OfficeActual[#Headers],0)) -> ¥40.00 | N14: =INDEX(OfficePlan[],MATCH(INDEX(OfficeVariances[],ROW()-ROW(OfficeVariances[[#Headers],[12 月]]),1),INDEX(OfficePlan[],,1),0),MATCH(OfficeVariances[[#Headers],[12 月]],OfficePlan[#Headers],0))-INDEX(OfficeActual[],MATCH(INDEX(OfficeVariances[],ROW()-ROW(OfficeVariances[[#Headers],[12 月]]),1),INDEX(OfficePlan[],,1),0),MATCH(OfficeVariances[[#Headers],[12 月]],OfficeActual[#Headers],0)) -> ¥40.00 | O14: =SUM(OfficeVariances[[#This Row],[1 月]:[12 月]]) -> ¥272.00
B15: 電話 | C15: =INDEX(OfficePlan[],MATCH(INDEX(OfficeVariances[],ROW()-ROW(OfficeVariances[[#Headers],[1 月]]),1),INDEX(OfficePlan[],,1),0),MATCH(OfficeVariances[[#Headers],[1 月]],OfficePlan[#Headers],0))-INDEX(OfficeActual[],MATCH(INDEX(OfficeVariances[],ROW()-ROW(OfficeVariances[[#Headers],[1 月]]),1),INDEX(OfficePlan[],,1),0),MATCH(OfficeVariances[[#Headers],[1 月]],OfficeActual[#Headers],0)) -> ¥26.00 | D15: =INDEX(OfficePlan[],MATCH(INDEX(OfficeVariances[],ROW()-ROW(OfficeVariances[[#Headers],[2 月]]),1),INDEX(OfficePlan[],,1),0),MATCH(OfficeVariances[[#Headers],[2 月]],OfficePlan[#Headers],0))-INDEX(OfficeActual[],MATCH(INDEX(OfficeVariances[],ROW()-ROW(OfficeVariances[[#Headers],[2 月]]),1),INDEX(OfficePlan[],,1),0),MATCH(OfficeVariances[[#Headers],[2 月]],OfficeActual[#Headers],0)) -> ¥15.00 | E15: =INDEX(OfficePlan[],MATCH(INDEX(OfficeVariances[],ROW()-ROW(OfficeVariances[[#Headers],[3 月]]),1),INDEX(OfficePlan[],,1),0),MATCH(OfficeVariances[[#Headers],[3 月]],OfficePlan[#Headers],0))-INDEX(OfficeActual[],MATCH(INDEX(OfficeVariances[],ROW()-ROW(OfficeVariances[[#Headers],[3 月]]),1),INDEX(OfficePlan[],,1),0),MATCH(OfficeVariances[[#Headers],[3 月]],OfficeActual[#Headers],0)) -> (¥15.00) | F15: =INDEX(OfficePlan[],MATCH(INDEX(OfficeVariances[],ROW()-ROW(OfficeVariances[[#Headers],[4 月]]),1),INDEX(OfficePlan[],,1),0),MATCH(OfficeVariances[[#Headers],[4 月]],OfficePlan[#Headers],0))-INDEX(OfficeActual[],MATCH(INDEX(OfficeVariances[],ROW()-ROW(OfficeVariances[[#Headers],[4 月]]),1),INDEX(OfficePlan[],,1),0),MATCH(OfficeVariances[[#Headers],[4 月]],OfficeActual[#Headers],0)) -> ¥5.00 | G15: =INDEX(OfficePlan[],MATCH(INDEX(OfficeVariances[],ROW()-ROW(OfficeVariances[[#Headers],[5 月]]),1),INDEX(OfficePlan[],,1),0),MATCH(OfficeVariances[[#Headers],[5 月]],OfficePlan[#Headers],0))-INDEX(OfficeActual[],MATCH(INDEX(OfficeVariances[],ROW()-ROW(OfficeVariances[[#Headers],[5 月]]),1),INDEX(OfficePlan[],,1),0),MATCH(OfficeVariances[[#Headers],[5 月]],OfficeActual[#Headers],0)) -> ¥5.00 | H15: =INDEX(OfficePlan[],MATCH(INDEX(OfficeVariances[],ROW()-ROW(OfficeVariances[[#Headers],[6 月]]),1),INDEX(OfficePlan[],,1),0),MATCH(OfficeVariances[[#Headers],[6 月]],OfficePlan[#Headers],0))-INDEX(OfficeActual[],MATCH(INDEX(OfficeVariances[],ROW()-ROW(OfficeVariances[[#Headers],[6 月]]),1),INDEX(OfficePlan[],,1),0),MATCH(OfficeVariances[[#Headers],[6 月]],OfficeActual[#Headers],0)) -> ¥30.00 | I15: =INDEX(OfficePlan[],MATCH(INDEX(OfficeVariances[],ROW()-ROW(OfficeVariances[[#Headers],[7 月]]),1),INDEX(OfficePlan[],,1),0),MATCH(OfficeVariances[[#Headers],[7 月]],OfficePlan[#Headers],0))-INDEX(OfficeActual[],MATCH(INDEX(OfficeVariances[],ROW()-ROW(OfficeVariances[[#Headers],[7 月]]),1),INDEX(OfficePlan[],,1),0),MATCH(OfficeVariances[[#Headers],[7 月]],OfficeActual[#Headers],0)) -> ¥250.00 | J15: =INDEX(OfficePlan[],MATCH(INDEX(OfficeVariances[],ROW()-ROW(OfficeVariances[[#Headers],[8 月]]),1),INDEX(OfficePlan[],,1),0),MATCH(OfficeVariances[[#Headers],[8 月]],OfficePlan[#Headers],0))-INDEX(OfficeActual[],MATCH(INDEX(OfficeVariances[],ROW()-ROW(OfficeVariances[[#Headers],[8 月]]),1),INDEX(OfficePlan[],,1),0),MATCH(OfficeVariances[[#Headers],[8 月]],OfficeActual[#Headers],0)) -> ¥250.00 | K15: =INDEX(OfficePlan[],MATCH(INDEX(OfficeVariances[],ROW()-ROW(OfficeVariances[[#Headers],[9 月]]),1),INDEX(OfficePlan[],,1),0),MATCH(OfficeVariances[[#Headers],[9 月]],OfficePlan[#Headers],0))-INDEX(OfficeActual[],MATCH(INDEX(OfficeVariances[],ROW()-ROW(OfficeVariances[[#Headers],[9 月]]),1),INDEX(OfficePlan[],,1),0),MATCH(OfficeVariances[[#Headers],[9 月]],OfficeActual[#Headers],0)) -> ¥250.00 | L15: =INDEX(OfficePlan[],MATCH(INDEX(OfficeVariances[],ROW()-ROW(OfficeVariances[[#Headers],[10 月]]),1),INDEX(OfficePlan[],,1),0),MATCH(OfficeVariances[[#Headers],[10 月]],OfficePlan[#Headers],0))-INDEX(OfficeActual[],MATCH(INDEX(OfficeVariances[],ROW()-ROW(OfficeVariances[[#Headers],[10 月]]),1),INDEX(OfficePlan[],,1),0),MATCH(OfficeVariances[[#Headers],[10 月]],OfficeActual[#Headers],0)) -> ¥250.00 | M15: =INDEX(OfficePlan[],MATCH(INDEX(OfficeVariances[],ROW()-ROW(OfficeVariances[[#Headers],[11 月]]),1),INDEX(OfficePlan[],,1),0),MATCH(OfficeVariances[[#Headers],[11 月]],OfficePlan[#Headers],0))-INDEX(OfficeActual[],MATCH(INDEX(OfficeVariances[],ROW()-ROW(OfficeVariances[[#Headers],[11 月]]),1),INDEX(OfficePlan[],,1),0),MATCH(OfficeVariances[[#Headers],[11 月]],OfficeActual[#Headers],0)) -> ¥250.00 | N15: =INDEX(OfficePlan[],MATCH(INDEX(OfficeVariances[],ROW()-ROW(OfficeVariances[[#Headers],[12 月]]),1),INDEX(OfficePlan[],,1),0),MATCH(OfficeVariances[[#Headers],[12 月]],OfficePlan[#Headers],0))-INDEX(OfficeActual[],MATCH(INDEX(OfficeVariances[],ROW()-ROW(OfficeVariances[[#Headers],[12 月]]),1),INDEX(OfficePlan[],,1),0),MATCH(OfficeVariances[[#Headers],[12 月]],OfficeActual[#Headers],0)) -> ¥250.00 | O15: =SUM(OfficeVariances[[#This Row],[1 月]:[12 月]]) -> ¥1,566.00
B16: インターネット アクセス | C16: =INDEX(OfficePlan[],MATCH(INDEX(OfficeVariances[],ROW()-ROW(OfficeVariances[[#Headers],[1 月]]),1),INDEX(OfficePlan[],,1),0),MATCH(OfficeVariances[[#Headers],[1 月]],OfficePlan[#Headers],0))-INDEX(OfficeActual[],MATCH(INDEX(OfficeVariances[],ROW()-ROW(OfficeVariances[[#Headers],[1 月]]),1),INDEX(OfficePlan[],,1),0),MATCH(OfficeVariances[[#Headers],[1 月]],OfficeActual[#Headers],0)) -> ¥0.00 | D16: =INDEX(OfficePlan[],MATCH(INDEX(OfficeVariances[],ROW()-ROW(OfficeVariances[[#Headers],[2 月]]),1),INDEX(OfficePlan[],,1),0),MATCH(OfficeVariances[[#Headers],[2 月]],OfficePlan[#Headers],0))-INDEX(OfficeActual[],MATCH(INDEX(OfficeVariances[],ROW()-ROW(OfficeVariances[[#Headers],[2 月]]),1),INDEX(OfficePlan[],,1),0),MATCH(OfficeVariances[[#Headers],[2 月]],OfficeActual[#Headers],0)) -> ¥0.00 | E16: =INDEX(OfficePlan[],MATCH(INDEX(OfficeVariances[],ROW()-ROW(OfficeVariances[[#Headers],[3 月]]),1),INDEX(OfficePlan[],,1),0),MATCH(OfficeVariances[[#Headers],[3 月]],OfficePlan[#Headers],0))-INDEX(OfficeActual[],MATCH(INDEX(OfficeVariances[],ROW()-ROW(OfficeVariances[[#Headers],[3 月]]),1),INDEX(OfficePlan[],,1),0),MATCH(OfficeVariances[[#Headers],[3 月]],OfficeActual[#Headers],0)) -> ¥0.00 | F16: =INDEX(OfficePlan[],MATCH(INDEX(OfficeVariances[],ROW()-ROW(OfficeVariances[[#Headers],[4 月]]),1),INDEX(OfficePlan[],,1),0),MATCH(OfficeVariances[[#Headers],[4 月]],OfficePlan[#Headers],0))-INDEX(OfficeActual[],MATCH(INDEX(OfficeVariances[],ROW()-ROW(OfficeVariances[[#Headers],[4 月]]),1),INDEX(OfficePlan[],,1),0),MATCH(OfficeVariances[[#Headers],[4 月]],OfficeActual[#Headers],0)) -> ¥0.00 | G16: =INDEX(OfficePlan[],MATCH(INDEX(OfficeVariances[],ROW()-ROW(OfficeVariances[[#Headers],[5 月]]),1),INDEX(OfficePlan[],,1),0),MATCH(OfficeVariances[[#Headers],[5 月]],OfficePlan[#Headers],0))-INDEX(OfficeActual[],MATCH(INDEX(OfficeVariances[],ROW()-ROW(OfficeVariances[[#Headers],[5 月]]),1),INDEX(OfficePlan[],,1),0),MATCH(OfficeVariances[[#Headers],[5 月]],OfficeActual[#Headers],0)) -> ¥0.00 | H16: =INDEX(OfficePlan[],MATCH(INDEX(OfficeVariances[],ROW()-ROW(OfficeVariances[[#Headers],[6 月]]),1),INDEX(OfficePlan[],,1),0),MATCH(OfficeVariances[[#Headers],[6 月]],OfficePlan[#Headers],0))-INDEX(OfficeActual[],MATCH(INDEX(OfficeVariances[],ROW()-ROW(OfficeVariances[[#Headers],[6 月]]),1),INDEX(OfficePlan[],,1),0),MATCH(OfficeVariances[[#Headers],[6 月]],OfficeActual[#Headers],0)) -> ¥0.00 | I16: =INDEX(OfficePlan[],MATCH(INDEX(OfficeVariances[],ROW()-ROW(OfficeVariances[[#Headers],[7 月]]),1),INDEX(OfficePlan[],,1),0),MATCH(OfficeVariances[[#Headers],[7 月]],OfficePlan[#Headers],0))-INDEX(OfficeActual[],MATCH(INDEX(OfficeVariances[],ROW()-ROW(OfficeVariances[[#Headers],[7 月]]),1),INDEX(OfficePlan[],,1),0),MATCH(OfficeVariances[[#Headers],[7 月]],OfficeActual[#Headers],0)) -> ¥180.00 | J16: =INDEX(OfficePlan[],MATCH(INDEX(OfficeVariances[],ROW()-ROW(OfficeVariances[[#Headers],[8 月]]),1),INDEX(OfficePlan[],,1),0),MATCH(OfficeVariances[[#Headers],[8 月]],OfficePlan[#Headers],0))-INDEX(OfficeActual[],MATCH(INDEX(OfficeVariances[],ROW()-ROW(OfficeVariances[[#Headers],[8 月]]),1),INDEX(OfficePlan[],,1),0),MATCH(OfficeVariances[[#Headers],[8 月]],OfficeActual[#Headers],0)) -> ¥180.00 | K16: =INDEX(OfficePlan[],MATCH(INDEX(OfficeVariances[],ROW()-ROW(OfficeVariances[[#Headers],[9 月]]),1),INDEX(OfficePlan[],,1),0),MATCH(OfficeVariances[[#Headers],[9 月]],OfficePlan[#Headers],0))-INDEX(OfficeActual[],MATCH(INDEX(OfficeVariances[],ROW()-ROW(OfficeVariances[[#Headers],[9 月]]),1),INDEX(OfficePlan[],,1),0),MATCH(OfficeVariances[[#Headers],[9 月]],OfficeActual[#Headers],0)) -> ¥180.00 | L16: =INDEX(OfficePlan[],MATCH(INDEX(OfficeVariances[],ROW()-ROW(OfficeVariances[[#Headers],[10 月]]),1),INDEX(OfficePlan[],,1),0),MATCH(OfficeVariances[[#Headers],[10 月]],OfficePlan[#Headers],0))-INDEX(OfficeActual[],MATCH(INDEX(OfficeVariances[],ROW()-ROW(OfficeVariances[[#Headers],[10 月]]),1),INDEX(OfficePlan[],,1),0),MATCH(OfficeVariances[[#Headers],[10 月]],OfficeActual[#Headers],0)) -> ¥180.00 | M16: =INDEX(OfficePlan[],MATCH(INDEX(OfficeVariances[],ROW()-ROW(OfficeVariances[[#Headers],[11 月]]),1),INDEX(OfficePlan[],,1),0),MATCH(OfficeVariances[[#Headers],[11 月]],OfficePlan[#Headers],0))-INDEX(OfficeActual[],MATCH(INDEX(OfficeVariances[],ROW()-ROW(OfficeVariances[[#Headers],[11 月]]),1),INDEX(OfficePlan[],,1),0),MATCH(OfficeVariances[[#Headers],[11 月]],OfficeActual[#Headers],0)) -> ¥180.00 | N16: =INDEX(OfficePlan[],MATCH(INDEX(OfficeVariances[],ROW()-ROW(OfficeVariances[[#Headers],[12 月]]),1),INDEX(OfficePlan[],,1),0),MATCH(OfficeVariances[[#Headers],[12 月]],OfficePlan[#Headers],0))-INDEX(OfficeActual[],MATCH(INDEX(OfficeVariances[],ROW()-ROW(OfficeVariances[[#Headers],[12 月]]),1),INDEX(OfficePlan[],,1),0),MATCH(OfficeVariances[[#Headers],[12 月]],OfficeActual[#Headers],0)) -> ¥180.00 | O16: =SUM(OfficeVariances[[#This Row],[1 月]:[12 月]]) -> ¥1,080.00
B17: 事務用品 | C17: =INDEX(OfficePlan[],MATCH(INDEX(OfficeVariances[],ROW()-ROW(OfficeVariances[[#Headers],[1 月]]),1),INDEX(OfficePlan[],,1),0),MATCH(OfficeVariances[[#Headers],[1 月]],OfficePlan[#Headers],0))-INDEX(OfficeActual[],MATCH(INDEX(OfficeVariances[],ROW()-ROW(OfficeVariances[[#Headers],[1 月]]),1),INDEX(OfficePlan[],,1),0),MATCH(OfficeVariances[[#Headers],[1 月]],OfficeActual[#Headers],0)) -> (¥56.00) | D17: =INDEX(OfficePlan[],MATCH(INDEX(OfficeVariances[],ROW()-ROW(OfficeVariances[[#Headers],[2 月]]),1),INDEX(OfficePlan[],,1),0),MATCH(OfficeVariances[[#Headers],[2 月]],OfficePlan[#Headers],0))-INDEX(OfficeActual[],MATCH(INDEX(OfficeVariances[],ROW()-ROW(OfficeVariances[[#Headers],[2 月]]),1),INDEX(OfficePlan[],,1),0),MATCH(OfficeVariances[[#Headers],[2 月]],OfficeActual[#Headers],0)) -> ¥58.00 | E17: =INDEX(OfficePlan[],MATCH(INDEX(OfficeVariances[],ROW()-ROW(OfficeVariances[[#Headers],[3 月]]),1),INDEX(OfficePlan[],,1),0),MATCH(OfficeVariances[[#Headers],[3 月]],OfficePlan[#Headers],0))-INDEX(OfficeActual[],MATCH(INDEX(OfficeVariances[],ROW()-ROW(OfficeVariances[[#Headers],[3 月]]),1),INDEX(OfficePlan[],,1),0),MATCH(OfficeVariances[[#Headers],[3 月]],OfficeActual[#Headers],0)) -> ¥40.00 | F17: =INDEX(OfficePlan[],MATCH(INDEX(OfficeVariances[],ROW()-ROW(OfficeVariances[[#Headers],[4 月]]),1),INDEX(OfficePlan[],,1),0),MATCH(OfficeVariances[[#Headers],[4 月]],OfficePlan[#Headers],0))-INDEX(OfficeActual[],MATCH(INDEX(OfficeVariances[],ROW()-ROW(OfficeVariances[[#Headers],[4 月]]),1),INDEX(OfficePlan[],,1),0),MATCH(OfficeVariances[[#Headers],[4 月]],OfficeActual[#Headers],0)) -> (¥21.00) | G17: =INDEX(OfficePlan[],MATCH(INDEX(OfficeVariances[],ROW()-ROW(OfficeVariances[[#Headers],[5 月]]),1),INDEX(OfficePlan[],,1),0),MATCH(OfficeVariances[[#Headers],[5 月]],OfficePlan[#Headers],0))-INDEX(OfficeActual[],MATCH(INDEX(OfficeVariances[],ROW()-ROW(OfficeVariances[[#Headers],[5 月]]),1),INDEX(OfficePlan[],,1),0),MATCH(OfficeVariances[[#Headers],[5 月]],OfficeActual[#Headers],0)) -> (¥56.00) | H17: =INDEX(OfficePlan[],MATCH(INDEX(OfficeVariances[],ROW()-ROW(OfficeVariances[[#Headers],[6 月]]),1),INDEX(OfficePlan[],,1),0),MATCH(OfficeVariances[[#Headers],[6 月]],OfficePlan[#Headers],0))-INDEX(OfficeActual[],MATCH(INDEX(OfficeVariances[],ROW()-ROW(OfficeVariances[[#Headers],[6 月]]),1),INDEX(OfficePlan[],,1),0),MATCH(OfficeVariances[[#Headers],[6 月]],OfficeActual[#Headers],0)) -> (¥40.00) | I17: =INDEX(OfficePlan[],MATCH(INDEX(OfficeVariances[],ROW()-ROW(OfficeVariances[[#Headers],[7 月]]),1),INDEX(OfficePlan[],,1),0),MATCH(OfficeVariances[[#Headers],[7 月]],OfficePlan[#Headers],0))-INDEX(OfficeActual[],MATCH(INDEX(OfficeVariances[],ROW()-ROW(OfficeVariances[[#Headers],[7 月]]),1),INDEX(OfficePlan[],,1),0),MATCH(OfficeVariances[[#Headers],[7 月]],OfficeActual[#Headers],0)) -> ¥200.00 | J17: =INDEX(OfficePlan[],MATCH(INDEX(OfficeVariances[],ROW()-ROW(OfficeVariances[[#Headers],[8 月]]),1),INDEX(OfficePlan[],,1),0),MATCH(OfficeVariances[[#Headers],[8 月]],OfficePlan[#Headers],0))-INDEX(OfficeActual[],MATCH(INDEX(OfficeVariances[],ROW()-ROW(OfficeVariances[[#Headers],[8 月]]),1),INDEX(OfficePlan[],,1),0),MATCH(OfficeVariances[[#Headers],[8 月]],OfficeActual[#Headers],0)) -> ¥200.00 | K17: =INDEX(OfficePlan[],MATCH(INDEX(OfficeVariances[],ROW()-ROW(OfficeVariances[[#Headers],[9 月]]),1),INDEX(OfficePlan[],,1),0),MATCH(OfficeVariances[[#Headers],[9 月]],OfficePlan[#Headers],0))-INDEX(OfficeActual[],MATCH(INDEX(OfficeVariances[],ROW()-ROW(OfficeVariances[[#Headers],[9 月]]),1),INDEX(OfficePlan[],,1),0),MATCH(OfficeVariances[[#Headers],[9 月]],OfficeActual[#Headers],0)) -> ¥200.00 | L17: =INDEX(OfficePlan[],MATCH(INDEX(OfficeVariances[],ROW()-ROW(OfficeVariances[[#Headers],[10 月]]),1),INDEX(OfficePlan[],,1),0),MATCH(OfficeVariances[[#Headers],[10 月]],OfficePlan[#Headers],0))-INDEX(OfficeActual[],MATCH(INDEX(OfficeVariances[],ROW()-ROW(OfficeVariances[[#Headers],[10 月]]),1),INDEX(OfficePlan[],,1),0),MATCH(OfficeVariances[[#Headers],[10 月]],OfficeActual[#Headers],0)) -> ¥200.00 | M17: =INDEX(OfficePlan[],MATCH(INDEX(OfficeVariances[],ROW()-ROW(OfficeVariances[[#Headers],[11 月]]),1),INDEX(OfficePlan[],,1),0),MATCH(OfficeVariances[[#Headers],[11 月]],OfficePlan[#Headers],0))-INDEX(OfficeActual[],MATCH(INDEX(OfficeVariances[],ROW()-ROW(OfficeVariances[[#Headers],[11 月]]),1),INDEX(OfficePlan[],,1),0),MATCH(OfficeVariances[[#Headers],[11 月]],OfficeActual[#Headers],0)) -> ¥200.00 | N17: =INDEX(OfficePlan[],MATCH(INDEX(OfficeVariances[],ROW()-ROW(OfficeVariances[[#Headers],[12 月]]),1),INDEX(OfficePlan[],,1),0),MATCH(OfficeVariances[[#Headers],[12 月]],OfficePlan[#Headers],0))-INDEX(OfficeActual[],MATCH(INDEX(OfficeVariances[],ROW()-ROW(OfficeVariances[[#Headers],[12 月]]),1),INDEX(OfficePlan[],,1),0),MATCH(OfficeVariances[[#Headers],[12 月]],OfficeActual[#Headers],0)) -> ¥200.00 | O17: =SUM(OfficeVariances[[#This Row],[1 月]:[12 月]]) -> ¥1,125.00
B18: セキュリティ | C18: =INDEX(OfficePlan[],MATCH(INDEX(OfficeVariances[],ROW()-ROW(OfficeVariances[[#Headers],[1 月]]),1),INDEX(OfficePlan[],,1),0),MATCH(OfficeVariances[[#Headers],[1 月]],OfficePlan[#Headers],0))-INDEX(OfficeActual[],MATCH(INDEX(OfficeVariances[],ROW()-ROW(OfficeVariances[[#Headers],[1 月]]),1),INDEX(OfficePlan[],,1),0),MATCH(OfficeVariances[[#Headers],[1 月]],OfficeActual[#Headers],0)) -> ¥0.00 | D18: =INDEX(OfficePlan[],MATCH(INDEX(OfficeVariances[],ROW()-ROW(OfficeVariances[[#Headers],[2 月]]),1),INDEX(OfficePlan[],,1),0),MATCH(OfficeVariances[[#Headers],[2 月]],OfficePlan[#Headers],0))-INDEX(OfficeActual[],MATCH(INDEX(OfficeVariances[],ROW()-ROW(OfficeVariances[[#Headers],[2 月]]),1),INDEX(OfficePlan[],,1),0),MATCH(OfficeVariances[[#Headers],[2 月]],OfficeActual[#Headers],0)) -> ¥0.00 | E18: =INDEX(OfficePlan[],MATCH(INDEX(OfficeVariances[],ROW()-ROW(OfficeVariances[[#Headers],[3 月]]),1),INDEX(OfficePlan[],,1),0),MATCH(OfficeVariances[[#Headers],[3 月]],OfficePlan[#Headers],0))-INDEX(OfficeActual[],MATCH(INDEX(OfficeVariances[],ROW()-ROW(OfficeVariances[[#Headers],[3 月]]),1),INDEX(OfficePlan[],,1),0),MATCH(OfficeVariances[[#Headers],[3 月]],OfficeActual[#Headers],0)) -> ¥0.00 | F18: =INDEX(OfficePlan[],MATCH(INDEX(OfficeVariances[],ROW()-ROW(OfficeVariances[[#Headers],[4 月]]),1),INDEX(OfficePlan[],,1),0),MATCH(OfficeVariances[[#Headers],[4 月]],OfficePlan[#Headers],0))-INDEX(OfficeActual[],MATCH(INDEX(OfficeVariances[],ROW()-ROW(OfficeVariances[[#Headers],[4 月]]),1),INDEX(OfficePlan[],,1),0),MATCH(OfficeVariances[[#Headers],[4 月]],OfficeActual[#Headers],0)) -> ¥0.00 | G18: =INDEX(OfficePlan[],MATCH(INDEX(OfficeVariances[],ROW()-ROW(OfficeVariances[[#Headers],[5 月]]),1),INDEX(OfficePlan[],,1),0),MATCH(OfficeVariances[[#Headers],[5 月]],OfficePlan[#Headers],0))-INDEX(OfficeActual[],MATCH(INDEX(OfficeVariances[],ROW()-ROW(OfficeVariances[[#Headers],[5 月]]),1),INDEX(OfficePlan[],,1),0),MATCH(OfficeVariances[[#Headers],[5 月]],OfficeActual[#Headers],0)) -> ¥0.00 | H18: =INDEX(OfficePlan[],MATCH(INDEX(OfficeVariances[],ROW()-ROW(OfficeVariances[[#Headers],[6 月]]),1),INDEX(OfficePlan[],,1),0),MATCH(OfficeVariances[[#Headers],[6 月]],OfficePlan[#Headers],0))-INDEX(OfficeActual[],MATCH(INDEX(OfficeVariances[],ROW()-ROW(OfficeVariances[[#Headers],[6 月]]),1),INDEX(OfficePlan[],,1),0),MATCH(OfficeVariances[[#Headers],[6 月]],OfficeActual[#Headers],0)) -> ¥0.00 | I18: =INDEX(OfficePlan[],MATCH(INDEX(OfficeVariances[],ROW()-ROW(OfficeVariances[[#Headers],[7 月]]),1),INDEX(OfficePlan[],,1),0),MATCH(OfficeVariances[[#Headers],[7 月]],OfficePlan[#Headers],0))-INDEX(OfficeActual[],MATCH(INDEX(OfficeVariances[],ROW()-ROW(OfficeVariances[[#Headers],[7 月]]),1),INDEX(OfficePlan[],,1),0),MATCH(OfficeVariances[[#Headers],[7 月]],OfficeActual[#Headers],0)) -> ¥600.00 | J18: =INDEX(OfficePlan[],MATCH(INDEX(OfficeVariances[],ROW()-ROW(OfficeVariances[[#Headers],[8 月]]),1),INDEX(OfficePlan[],,1),0),MATCH(OfficeVariances[[#Headers],[8 月]],OfficePlan[#Headers],0))-INDEX(OfficeActual[],MATCH(INDEX(OfficeVariances[],ROW()-ROW(OfficeVariances[[#Headers],[8 月]]),1),INDEX(OfficePlan[],,1),0),MATCH(OfficeVariances[[#Headers],[8 月]],OfficeActual[#Headers],0)) -> ¥600.00 | K18: =INDEX(OfficePlan[],MATCH(INDEX(OfficeVariances[],ROW()-ROW(OfficeVariances[[#Headers],[9 月]]),1),INDEX(OfficePlan[],,1),0),MATCH(OfficeVariances[[#Headers],[9 月]],OfficePlan[#Headers],0))-INDEX(OfficeActual[],MATCH(INDEX(OfficeVariances[],ROW()-ROW(OfficeVariances[[#Headers],[9 月]]),1),INDEX(OfficePlan[],,1),0),MATCH(OfficeVariances[[#Headers],[9 月]],OfficeActual[#Headers],0)) -> ¥600.00 | L18: =INDEX(OfficePlan[],MATCH(INDEX(OfficeVariances[],ROW()-ROW(OfficeVariances[[#Headers],[10 月]]),1),INDEX(OfficePlan[],,1),0),MATCH(OfficeVariances[[#Headers],[10 月]],OfficePlan[#Headers],0))-INDEX(OfficeActual[],MATCH(INDEX(OfficeVariances[],ROW()-ROW(OfficeVariances[[#Headers],[10 月]]),1),INDEX(OfficePlan[],,1),0),MATCH(OfficeVariances[[#Headers],[10 月]],OfficeActual[#Headers],0)) -> ¥600.00 | M18: =INDEX(OfficePlan[],MATCH(INDEX(OfficeVariances[],ROW()-ROW(OfficeVariances[[#Headers],[11 月]]),1),INDEX(OfficePlan[],,1),0),MATCH(OfficeVariances[[#Headers],[11 月]],OfficePlan[#Headers],0))-INDEX(OfficeActual[],MATCH(INDEX(OfficeVariances[],ROW()-ROW(OfficeVariances[[#Headers],[11 月]]),1),INDEX(OfficePlan[],,1),0),MATCH(OfficeVariances[[#Headers],[11 月]],OfficeActual[#Headers],0)) -> ¥600.00 | N18: =INDEX(OfficePlan[],MATCH(INDEX(OfficeVariances[],ROW()-ROW(OfficeVariances[[#Headers],[12 月]]),1),INDEX(OfficePlan[],,1),0),MATCH(OfficeVariances[[#Headers],[12 月]],OfficePlan[#Headers],0))-INDEX(OfficeActual[],MATCH(INDEX(OfficeVariances[],ROW()-ROW(OfficeVariances[[#Headers],[12 月]]),1),INDEX(OfficePlan[],,1),0),MATCH(OfficeVariances[[#Headers],[12 月]],OfficeActual[#Headers],0)) -> ¥600.00 | O18: =SUM(OfficeVariances[[#This Row],[1 月]:[12 月]]) -> ¥3,600.00
B19: 小計 | C19: =SUBTOTAL(109,OfficeVariances[1 月]) -> (¥17.00) | D19: =SUBTOTAL(109,OfficeVariances[2 月]) -> ¥72.00 | E19: =SUBTOTAL(109,OfficeVariances[3 月]) -> ¥78.00 | F19: =SUBTOTAL(109,OfficeVariances[4 月]) -> (¥141.00) | G19: =SUBTOTAL(109,OfficeVariances[5 月]) -> (¥38.00) | H19: =SUBTOTAL(109,OfficeVariances[6 月]) -> ¥16.00 | I19: =SUBTOTAL(109,OfficeVariances[7 月]) -> ¥11,470.00 | J19: =SUBTOTAL(109,OfficeVariances[8 月]) -> ¥11,470.00 | K19: =SUBTOTAL(109,OfficeVariances[9 月]) -> ¥11,470.00 | L19: =SUBTOTAL(109,OfficeVariances[10 月]) -> ¥11,470.00 | M19: =SUBTOTAL(109,OfficeVariances[11 月]) -> ¥11,770.00 | N19: =SUBTOTAL(109,OfficeVariances[12 月]) -> ¥11,770.00 | O19: =SUBTOTAL(109,OfficeVariances[年]) -> ¥69,390.00
A21: マーケティング費用の差異は、右のセルから始まるマーケティングの差異の表で自動的に計算されます。次の指示はセル A30 に表示されます。 | B21: マーケティング費用 | C21: 1 月 | D21: 2 月 | E21: 3 月 | F21: 4 月 | G21: 5 月 | H21: 6 月 | I21: 7 月 | J21: 8 月 | K21: 9 月 | L21: 10 月 | M21: 11 月 | N21: 12 月 | O21: 年
B22: Web サイト ホスティング | C22: =INDEX(MarketingPlan[],MATCH(INDEX(MarketingVariances[],ROW()-ROW(MarketingVariances[[#Headers],[1 月]]),1),INDEX(MarketingPlan[],,1),0),MATCH(MarketingVariances[[#Headers],[1 月]],MarketingPlan[#Headers],0))-INDEX(MarketingActual[],MATCH(INDEX(MarketingVariances[],ROW()-ROW(MarketingVariances[[#Headers],[1 月]]),1),INDEX(MarketingPlan[],,1),0),MATCH(MarketingVariances[[#Headers],[1 月]],MarketingActual[#Headers],0)) -> ¥0.00 | D22: =INDEX(MarketingPlan[],MATCH(INDEX(MarketingVariances[],ROW()-ROW(MarketingVariances[[#Headers],[2 月]]),1),INDEX(MarketingPlan[],,1),0),MATCH(MarketingVariances[[#Headers],[2 月]],MarketingPlan[#Headers],0))-INDEX(MarketingActual[],MATCH(INDEX(MarketingVariances[],ROW()-ROW(MarketingVariances[[#Headers],[2 月]]),1),INDEX(MarketingPlan[],,1),0),MATCH(MarketingVariances[[#Headers],[2 月]],MarketingActual[#Headers],0)) -> ¥0.00 | E22: =INDEX(MarketingPlan[],MATCH(INDEX(MarketingVariances[],ROW()-ROW(MarketingVariances[[#Headers],[3 月]]),1),INDEX(MarketingPlan[],,1),0),MATCH(MarketingVariances[[#Headers],[3 月]],MarketingPlan[#Headers],0))-INDEX(MarketingActual[],MATCH(INDEX(MarketingVariances[],ROW()-ROW(MarketingVariances[[#Headers],[3 月]]),1),INDEX(MarketingPlan[],,1),0),MATCH(MarketingVariances[[#Headers],[3 月]],MarketingActual[#Headers],0)) -> ¥0.00 | F22: =INDEX(MarketingPlan[],MATCH(INDEX(MarketingVariances[],ROW()-ROW(MarketingVariances[[#Headers],[4 月]]),1),INDEX(MarketingPlan[],,1),0),MATCH(MarketingVariances[[#Headers],[4 月]],MarketingPlan[#Headers],0))-INDEX(MarketingActual[],MATCH(INDEX(MarketingVariances[],ROW()-ROW(MarketingVariances[[#Headers],[4 月]]),1),INDEX(MarketingPlan[],,1),0),MATCH(MarketingVariances[[#Headers],[4 月]],MarketingActual[#Headers],0)) -> ¥0.00 | G22: =INDEX(MarketingPlan[],MATCH(INDEX(MarketingVariances[],ROW()-ROW(MarketingVariances[[#Headers],[5 月]]),1),INDEX(MarketingPlan[],,1),0),MATCH(MarketingVariances[[#Headers],[5 月]],MarketingPlan[#Headers],0))-INDEX(MarketingActual[],MATCH(INDEX(MarketingVariances[],ROW()-ROW(MarketingVariances[[#Headers],[5 月]]),1),INDEX(MarketingPlan[],,1),0),MATCH(MarketingVariances[[#Headers],[5 月]],MarketingActual[#Headers],0)) -> ¥0.00 | H22: =INDEX(MarketingPlan[],MATCH(INDEX(MarketingVariances[],ROW()-ROW(MarketingVariances[[#Headers],[6 月]]),1),INDEX(MarketingPlan[],,1),0),MATCH(MarketingVariances[[#Headers],[6 月]],MarketingPlan[#Headers],0))-INDEX(MarketingActual[],MATCH(INDEX(MarketingVariances[],ROW()-ROW(MarketingVariances[[#Headers],[6 月]]),1),INDEX(MarketingPlan[],,1),0),MATCH(MarketingVariances[[#Headers],[6 月]],MarketingActual[#Headers],0)) -> ¥0.00 | I22: =INDEX(MarketingPlan[],MATCH(INDEX(MarketingVariances[],ROW()-ROW(MarketingVariances[[#Headers],[7 月]]),1),INDEX(MarketingPlan[],,1),0),MATCH(MarketingVariances[[#Headers],[7 月]],MarketingPlan[#Headers],0))-INDEX(MarketingActual[],MATCH(INDEX(MarketingVariances[],ROW()-ROW(MarketingVariances[[#Headers],[7 月]]),1),INDEX(MarketingPlan[],,1),0),MATCH(MarketingVariances[[#Headers],[7 月]],MarketingActual[#Headers],0)) -> ¥500.00 | J22: =INDEX(MarketingPlan[],MATCH(INDEX(MarketingVariances[],ROW()-ROW(MarketingVariances[[#Headers],[8 月]]),1),INDEX(MarketingPlan[],,1),0),MATCH(MarketingVariances[[#Headers],[8 月]],MarketingPlan[#Headers],0))-INDEX(MarketingActual[],MATCH(INDEX(MarketingVariances[],ROW()-ROW(MarketingVariances[[#Headers],[8 月]]),1),INDEX(MarketingPlan[],,1),0),MATCH(MarketingVariances[[#Headers],[8 月]],MarketingActual[#Headers],0)) -> ¥500.00 | K22: =INDEX(MarketingPlan[],MATCH(INDEX(MarketingVariances[],ROW()-ROW(MarketingVariances[[#Headers],[9 月]]),1),INDEX(MarketingPlan[],,1),0),MATCH(MarketingVariances[[#Headers],[9 月]],MarketingPlan[#Headers],0))-INDEX(MarketingActual[],MATCH(INDEX(MarketingVariances[],ROW()-ROW(MarketingVariances[[#Headers],[9 月]]),1),INDEX(MarketingPlan[],,1),0),MATCH(MarketingVariances[[#Headers],[9 月]],MarketingActual[#Headers],0)) -> ¥500.00 | L22: =INDEX(MarketingPlan[],MATCH(INDEX(MarketingVariances[],ROW()-ROW(MarketingVariances[[#Headers],[10 月]]),1),INDEX(MarketingPlan[],,1),0),MATCH(MarketingVariances[[#Headers],[10 月]],MarketingPlan[#Headers],0))-INDEX(MarketingActual[],MATCH(INDEX(MarketingVariances[],ROW()-ROW(MarketingVariances[[#Headers],[10 月]]),1),INDEX(MarketingPlan[],,1),0),MATCH(MarketingVariances[[#Headers],[10 月]],MarketingActual[#Headers],0)) -> ¥500.00 | M22: =INDEX(MarketingPlan[],MATCH(INDEX(MarketingVariances[],ROW()-ROW(MarketingVariances[[#Headers],[11 月]]),1),INDEX(MarketingPlan[],,1),0),MATCH(MarketingVariances[[#Headers],[11 月]],MarketingPlan[#Headers],0))-INDEX(MarketingActual[],MATCH(INDEX(MarketingVariances[],ROW()-ROW(MarketingVariances[[#Headers],[11 月]]),1),INDEX(MarketingPlan[],,1),0),MATCH(MarketingVariances[[#Headers],[11 月]],MarketingActual[#Headers],0)) -> ¥500.00 | N22: =INDEX(MarketingPlan[],MATCH(INDEX(MarketingVariances[],ROW()-ROW(MarketingVariances[[#Headers],[12 月]]),1),INDEX(MarketingPlan[],,1),0),MATCH(MarketingVariances[[#Headers],[12 月]],MarketingPlan[#Headers],0))-INDEX(MarketingActual[],MATCH(INDEX(MarketingVariances[],ROW()-ROW(MarketingVariances[[#Headers],[12 月]]),1),INDEX(MarketingPlan[],,1),0),MATCH(MarketingVariances[[#Headers],[12 月]],MarketingActual[#Headers],0)) -> ¥500.00 | O22: =SUM(MarketingVariances[[#This Row],[1 月]:[12 月]]) -> ¥3,000.00
B23: Web サイトの更新 | C23: =INDEX(MarketingPlan[],MATCH(INDEX(MarketingVariances[],ROW()-ROW(MarketingVariances[[#Headers],[1 月]]),1),INDEX(MarketingPlan[],,1),0),MATCH(MarketingVariances[[#Headers],[1 月]],MarketingPlan[#Headers],0))-INDEX(MarketingActual[],MATCH(INDEX(MarketingVariances[],ROW()-ROW(MarketingVariances[[#Headers],[1 月]]),1),INDEX(MarketingPlan[],,1),0),MATCH(MarketingVariances[[#Headers],[1 月]],MarketingActual[#Headers],0)) -> ¥0.00 | D23: =INDEX(MarketingPlan[],MATCH(INDEX(MarketingVariances[],ROW()-ROW(MarketingVariances[[#Headers],[2 月]]),1),INDEX(MarketingPlan[],,1),0),MATCH(MarketingVariances[[#Headers],[2 月]],MarketingPlan[#Headers],0))-INDEX(MarketingActual[],MATCH(INDEX(MarketingVariances[],ROW()-ROW(MarketingVariances[[#Headers],[2 月]]),1),INDEX(MarketingPlan[],,1),0),MATCH(MarketingVariances[[#Headers],[2 月]],MarketingActual[#Headers],0)) -> ¥0.00 | E23: =INDEX(MarketingPlan[],MATCH(INDEX(MarketingVariances[],ROW()-ROW(MarketingVariances[[#Headers],[3 月]]),1),INDEX(MarketingPlan[],,1),0),MATCH(MarketingVariances[[#Headers],[3 月]],MarketingPlan[#Headers],0))-INDEX(MarketingActual[],MATCH(INDEX(MarketingVariances[],ROW()-ROW(MarketingVariances[[#Headers],[3 月]]),1),INDEX(MarketingPlan[],,1),0),MATCH(MarketingVariances[[#Headers],[3 月]],MarketingActual[#Headers],0)) -> ¥0.00 | F23: =INDEX(MarketingPlan[],MATCH(INDEX(MarketingVariances[],ROW()-ROW(MarketingVariances[[#Headers],[4 月]]),1),INDEX(MarketingPlan[],,1),0),MATCH(MarketingVariances[[#Headers],[4 月]],MarketingPlan[#Headers],0))-INDEX(MarketingActual[],MATCH(INDEX(MarketingVariances[],ROW()-ROW(MarketingVariances[[#Headers],[4 月]]),1),INDEX(MarketingPlan[],,1),0),MATCH(MarketingVariances[[#Headers],[4 月]],MarketingActual[#Headers],0)) -> ¥0.00 | G23: =INDEX(MarketingPlan[],MATCH(INDEX(MarketingVariances[],ROW()-ROW(MarketingVariances[[#Headers],[5 月]]),1),INDEX(MarketingPlan[],,1),0),MATCH(MarketingVariances[[#Headers],[5 月]],MarketingPlan[#Headers],0))-INDEX(MarketingActual[],MATCH(INDEX(MarketingVariances[],ROW()-ROW(MarketingVariances[[#Headers],[5 月]]),1),INDEX(MarketingPlan[],,1),0),MATCH(MarketingVariances[[#Headers],[5 月]],MarketingActual[#Headers],0)) -> ¥0.00 | H23: =INDEX(MarketingPlan[],MATCH(INDEX(MarketingVariances[],ROW()-ROW(MarketingVariances[[#Headers],[6 月]]),1),INDEX(MarketingPlan[],,1),0),MATCH(MarketingVariances[[#Headers],[6 月]],MarketingPlan[#Headers],0))-INDEX(MarketingActual[],MATCH(INDEX(MarketingVariances[],ROW()-ROW(MarketingVariances[[#Headers],[6 月]]),1),INDEX(MarketingPlan[],,1),0),MATCH(MarketingVariances[[#Headers],[6 月]],MarketingActual[#Headers],0)) -> (¥500.00) | I23: =INDEX(MarketingPlan[],MATCH(INDEX(MarketingVariances[],ROW()-ROW(MarketingVariances[[#Headers],[7 月]]),1),INDEX(MarketingPlan[],,1),0),MATCH(MarketingVariances[[#Headers],[7 月]],MarketingPlan[#Headers],0))-INDEX(MarketingActual[],MATCH(INDEX(MarketingVariances[],ROW()-ROW(MarketingVariances[[#Headers],[7 月]]),1),INDEX(MarketingPlan[],,1),0),MATCH(MarketingVariances[[#Headers],[7 月]],MarketingActual[#Headers],0)) -> ¥200.00 | J23: =INDEX(MarketingPlan[],MATCH(INDEX(MarketingVariances[],ROW()-ROW(MarketingVariances[[#Headers],[8 月]]),1),INDEX(MarketingPlan[],,1),0),MATCH(MarketingVariances[[#Headers],[8 月]],MarketingPlan[#Headers],0))-INDEX(MarketingActual[],MATCH(INDEX(MarketingVariances[],ROW()-ROW(MarketingVariances[[#Headers],[8 月]]),1),INDEX(MarketingPlan[],,1),0),MATCH(MarketingVariances[[#Headers],[8 月]],MarketingActual[#Headers],0)) -> ¥200.00 | K23: =INDEX(MarketingPlan[],MATCH(INDEX(MarketingVariances[],ROW()-ROW(MarketingVariances[[#Headers],[9 月]]),1),INDEX(MarketingPlan[],,1),0),MATCH(MarketingVariances[[#Headers],[9 月]],MarketingPlan[#Headers],0))-INDEX(MarketingActual[],MATCH(INDEX(MarketingVariances[],ROW()-ROW(MarketingVariances[[#Headers],[9 月]]),1),INDEX(MarketingPlan[],,1),0),MATCH(MarketingVariances[[#Headers],[9 月]],MarketingActual[#Headers],0)) -> ¥200.00 | L23: =INDEX(MarketingPlan[],MATCH(INDEX(MarketingVariances[],ROW()-ROW(MarketingVariances[[#Headers],[10 月]]),1),INDEX(MarketingPlan[],,1),0),MATCH(MarketingVariances[[#Headers],[10 月]],MarketingPlan[#Headers],0))-INDEX(MarketingActual[],MATCH(INDEX(MarketingVariances[],ROW()-ROW(MarketingVariances[[#Headers],[10 月]]),1),INDEX(MarketingPlan[],,1),0),MATCH(MarketingVariances[[#Headers],[10 月]],MarketingActual[#Headers],0)) -> ¥200.00 | M23: =INDEX(MarketingPlan[],MATCH(INDEX(MarketingVariances[],ROW()-ROW(MarketingVariances[[#Headers],[11 月]]),1),INDEX(MarketingPlan[],,1),0),MATCH(MarketingVariances[[#Headers],[11 月]],MarketingPlan[#Headers],0))-INDEX(MarketingActual[],MATCH(INDEX(MarketingVariances[],ROW()-ROW(MarketingVariances[[#Headers],[11 月]]),1),INDEX(MarketingPlan[],,1),0),MATCH(MarketingVariances[[#Headers],[11 月]],MarketingActual[#Headers],0)) -> ¥200.00 | N23: =INDEX(MarketingPlan[],MATCH(INDEX(MarketingVariances[],ROW()-ROW(MarketingVariances[[#Headers],[12 月]]),1),INDEX(MarketingPlan[],,1),0),MATCH(MarketingVariances[[#Headers],[12 月]],MarketingPlan[#Headers],0))-INDEX(MarketingActual[],MATCH(INDEX(MarketingVariances[],ROW()-ROW(MarketingVariances[[#Headers],[12 月]]),1),INDEX(MarketingPlan[],,1),0),MATCH(MarketingVariances[[#Headers],[12 月]],MarketingActual[#Headers],0)) -> ¥1,000.00 | O23: =SUM(MarketingVariances[[#This Row],[1 月]:[12 月]]) -> ¥1,500.00
B24: 資料の準備 | C24: =INDEX(MarketingPlan[],MATCH(INDEX(MarketingVariances[],ROW()-ROW(MarketingVariances[[#Headers],[1 月]]),1),INDEX(MarketingPlan[],,1),0),MATCH(MarketingVariances[[#Headers],[1 月]],MarketingPlan[#Headers],0))-INDEX(MarketingActual[],MATCH(INDEX(MarketingVariances[],ROW()-ROW(MarketingVariances[[#Headers],[1 月]]),1),INDEX(MarketingPlan[],,1),0),MATCH(MarketingVariances[[#Headers],[1 月]],MarketingActual[#Headers],0)) -> ¥200.00 | D24: =INDEX(MarketingPlan[],MATCH(INDEX(MarketingVariances[],ROW()-ROW(MarketingVariances[[#Headers],[2 月]]),1),INDEX(MarketingPlan[],,1),0),MATCH(MarketingVariances[[#Headers],[2 月]],MarketingPlan[#Headers],0))-INDEX(MarketingActual[],MATCH(INDEX(MarketingVariances[],ROW()-ROW(MarketingVariances[[#Headers],[2 月]]),1),INDEX(MarketingPlan[],,1),0),MATCH(MarketingVariances[[#Headers],[2 月]],MarketingActual[#Headers],0)) -> ¥0.00 | E24: =INDEX(MarketingPlan[],MATCH(INDEX(MarketingVariances[],ROW()-ROW(MarketingVariances[[#Headers],[3 月]]),1),INDEX(MarketingPlan[],,1),0),MATCH(MarketingVariances[[#Headers],[3 月]],MarketingPlan[#Headers],0))-INDEX(MarketingActual[],MATCH(INDEX(MarketingVariances[],ROW()-ROW(MarketingVariances[[#Headers],[3 月]]),1),INDEX(MarketingPlan[],,1),0),MATCH(MarketingVariances[[#Headers],[3 月]],MarketingActual[#Headers],0)) -> ¥0.00 | F24: =INDEX(MarketingPlan[],MATCH(INDEX(MarketingVariances[],ROW()-ROW(MarketingVariances[[#Headers],[4 月]]),1),INDEX(MarketingPlan[],,1),0),MATCH(MarketingVariances[[#Headers],[4 月]],MarketingPlan[#Headers],0))-INDEX(MarketingActual[],MATCH(INDEX(MarketingVariances[],ROW()-ROW(MarketingVariances[[#Headers],[4 月]]),1),INDEX(MarketingPlan[],,1),0),MATCH(MarketingVariances[[#Headers],[4 月]],MarketingActual[#Headers],0)) -> (¥500.00) | G24: =INDEX(MarketingPlan[],MATCH(INDEX(MarketingVariances[],ROW()-ROW(MarketingVariances[[#Headers],[5 月]]),1),INDEX(MarketingPlan[],,1),0),MATCH(MarketingVariances[[#Headers],[5 月]],MarketingPlan[#Headers],0))-INDEX(MarketingActual[],MATCH(INDEX(MarketingVariances[],ROW()-ROW(MarketingVariances[[#Headers],[5 月]]),1),INDEX(MarketingPlan[],,1),0),MATCH(MarketingVariances[[#Headers],[5 月]],MarketingActual[#Headers],0)) -> ¥0.00 | H24: =INDEX(MarketingPlan[],MATCH(INDEX(MarketingVariances[],ROW()-ROW(MarketingVariances[[#Headers],[6 月]]),1),INDEX(MarketingPlan[],,1),0),MATCH(MarketingVariances[[#Headers],[6 月]],MarketingPlan[#Headers],0))-INDEX(MarketingActual[],MATCH(INDEX(MarketingVariances[],ROW()-ROW(MarketingVariances[[#Headers],[6 月]]),1),INDEX(MarketingPlan[],,1),0),MATCH(MarketingVariances[[#Headers],[6 月]],MarketingActual[#Headers],0)) -> ¥0.00 | I24: =INDEX(MarketingPlan[],MATCH(INDEX(MarketingVariances[],ROW()-ROW(MarketingVariances[[#Headers],[7 月]]),1),INDEX(MarketingPlan[],,1),0),MATCH(MarketingVariances[[#Headers],[7 月]],MarketingPlan[#Headers],0))-INDEX(MarketingActual[],MATCH(INDEX(MarketingVariances[],ROW()-ROW(MarketingVariances[[#Headers],[7 月]]),1),INDEX(MarketingPlan[],,1),0),MATCH(MarketingVariances[[#Headers],[7 月]],MarketingActual[#Headers],0)) -> ¥5,000.00 | J24: =INDEX(MarketingPlan[],MATCH(INDEX(MarketingVariances[],ROW()-ROW(MarketingVariances[[#Headers],[8 月]]),1),INDEX(MarketingPlan[],,1),0),MATCH(MarketingVariances[[#Headers],[8 月]],MarketingPlan[#Headers],0))-INDEX(MarketingActual[],MATCH(INDEX(MarketingVariances[],ROW()-ROW(MarketingVariances[[#Headers],[8 月]]),1),INDEX(MarketingPlan[],,1),0),MATCH(MarketingVariances[[#Headers],[8 月]],MarketingActual[#Headers],0)) -> ¥0.00 | K24: =INDEX(MarketingPlan[],MATCH(INDEX(MarketingVariances[],ROW()-ROW(MarketingVariances[[#Headers],[9 月]]),1),INDEX(MarketingPlan[],,1),0),MATCH(MarketingVariances[[#Headers],[9 月]],MarketingPlan[#Headers],0))-INDEX(MarketingActual[],MATCH(INDEX(MarketingVariances[],ROW()-ROW(MarketingVariances[[#Headers],[9 月]]),1),INDEX(MarketingPlan[],,1),0),MATCH(MarketingVariances[[#Headers],[9 月]],MarketingActual[#Headers],0)) -> ¥0.00 | L24: =INDEX(MarketingPlan[],MATCH(INDEX(MarketingVariances[],ROW()-ROW(MarketingVariances[[#Headers],[10 月]]),1),INDEX(MarketingPlan[],,1),0),MATCH(MarketingVariances[[#Headers],[10 月]],MarketingPlan[#Headers],0))-INDEX(MarketingActual[],MATCH(INDEX(MarketingVariances[],ROW()-ROW(MarketingVariances[[#Headers],[10 月]]),1),INDEX(MarketingPlan[],,1),0),MATCH(MarketingVariances[[#Headers],[10 月]],MarketingActual[#Headers],0)) -> ¥5,000.00 | M24: =INDEX(MarketingPlan[],MATCH(INDEX(MarketingVariances[],ROW()-ROW(MarketingVariances[[#Headers],[11 月]]),1),INDEX(MarketingPlan[],,1),0),MATCH(MarketingVariances[[#Headers],[11 月]],MarketingPlan[#Headers],0))-INDEX(MarketingActual[],MATCH(INDEX(MarketingVariances[],ROW()-ROW(MarketingVariances[[#Headers],[11 月]]),1),INDEX(MarketingPlan[],,1),0),MATCH(MarketingVariances[[#Headers],[11 月]],MarketingActual[#Headers],0)) -> ¥0.00 | N24: =INDEX(MarketingPlan[],MATCH(INDEX(MarketingVariances[],ROW()-ROW(MarketingVariances[[#Headers],[12 月]]),1),INDEX(MarketingPlan[],,1),0),MATCH(MarketingVariances[[#Headers],[12 月]],MarketingPlan[#Headers],0))-INDEX(MarketingActual[],MATCH(INDEX(MarketingVariances[],ROW()-ROW(MarketingVariances[[#Headers],[12 月]]),1),INDEX(MarketingPlan[],,1),0),MATCH(MarketingVariances[[#Headers],[12 月]],MarketingActual[#Headers],0)) -> ¥0.00 | O24: =SUM(MarketingVariances[[#This Row],[1 月]:[12 月]]) -> ¥9,700.00
B25: 資料の印刷 | C25: =INDEX(MarketingPlan[],MATCH(INDEX(MarketingVariances[],ROW()-ROW(MarketingVariances[[#Headers],[1 月]]),1),INDEX(MarketingPlan[],,1),0),MATCH(MarketingVariances[[#Headers],[1 月]],MarketingPlan[#Headers],0))-INDEX(MarketingActual[],MATCH(INDEX(MarketingVariances[],ROW()-ROW(MarketingVariances[[#Headers],[1 月]]),1),INDEX(MarketingPlan[],,1),0),MATCH(MarketingVariances[[#Headers],[1 月]],MarketingActual[#Headers],0)) -> ¥100.00 | D25: =INDEX(MarketingPlan[],MATCH(INDEX(MarketingVariances[],ROW()-ROW(MarketingVariances[[#Headers],[2 月]]),1),INDEX(MarketingPlan[],,1),0),MATCH(MarketingVariances[[#Headers],[2 月]],MarketingPlan[#Headers],0))-INDEX(MarketingActual[],MATCH(INDEX(MarketingVariances[],ROW()-ROW(MarketingVariances[[#Headers],[2 月]]),1),INDEX(MarketingPlan[],,1),0),MATCH(MarketingVariances[[#Headers],[2 月]],MarketingActual[#Headers],0)) -> (¥300.00) | E25: =INDEX(MarketingPlan[],MATCH(INDEX(MarketingVariances[],ROW()-ROW(MarketingVariances[[#Headers],[3 月]]),1),INDEX(MarketingPlan[],,1),0),MATCH(MarketingVariances[[#Headers],[3 月]],MarketingPlan[#Headers],0))-INDEX(MarketingActual[],MATCH(INDEX(MarketingVariances[],ROW()-ROW(MarketingVariances[[#Headers],[3 月]]),1),INDEX(MarketingPlan[],,1),0),MATCH(MarketingVariances[[#Headers],[3 月]],MarketingActual[#Headers],0)) -> ¥100.00 | F25: =INDEX(MarketingPlan[],MATCH(INDEX(MarketingVariances[],ROW()-ROW(MarketingVariances[[#Headers],[4 月]]),1),INDEX(MarketingPlan[],,1),0),MATCH(MarketingVariances[[#Headers],[4 月]],MarketingPlan[#Headers],0))-INDEX(MarketingActual[],MATCH(INDEX(MarketingVariances[],ROW()-ROW(MarketingVariances[[#Headers],[4 月]]),1),INDEX(MarketingPlan[],,1),0),MATCH(MarketingVariances[[#Headers],[4 月]],MarketingActual[#Headers],0)) -> ¥100.00 | G25: =INDEX(MarketingPlan[],MATCH(INDEX(MarketingVariances[],ROW()-ROW(MarketingVariances[[#Headers],[5 月]]),1),INDEX(MarketingPlan[],,1),0),MATCH(MarketingVariances[[#Headers],[5 月]],MarketingPlan[#Headers],0))-INDEX(MarketingActual[],MATCH(INDEX(MarketingVariances[],ROW()-ROW(MarketingVariances[[#Headers],[5 月]]),1),INDEX(MarketingPlan[],,1),0),MATCH(MarketingVariances[[#Headers],[5 月]],MarketingActual[#Headers],0)) -> (¥400.00) | H25: =INDEX(MarketingPlan[],MATCH(INDEX(MarketingVariances[],ROW()-ROW(MarketingVariances[[#Headers],[6 月]]),1),INDEX(MarketingPlan[],,1),0),MATCH(MarketingVariances[[#Headers],[6 月]],MarketingPlan[#Headers],0))-INDEX(MarketingActual[],MATCH(INDEX(MarketingVariances[],ROW()-ROW(MarketingVariances[[#Headers],[6 月]]),1),INDEX(MarketingPlan[],,1),0),MATCH(MarketingVariances[[#Headers],[6 月]],MarketingActual[#Headers],0)) -> ¥20.00 | I25: =INDEX(MarketingPlan[],MATCH(INDEX(MarketingVariances[],ROW()-ROW(MarketingVariances[[#Headers],[7 月]]),1),INDEX(MarketingPlan[],,1),0),MATCH(MarketingVariances[[#Headers],[7 月]],MarketingPlan[#Headers],0))-INDEX(MarketingActual[],MATCH(INDEX(MarketingVariances[],ROW()-ROW(MarketingVariances[[#Headers],[7 月]]),1),INDEX(MarketingPlan[],,1),0),MATCH(MarketingVariances[[#Headers],[7 月]],MarketingActual[#Headers],0)) -> ¥200.00 | J25: =INDEX(MarketingPlan[],MATCH(INDEX(MarketingVariances[],ROW()-ROW(MarketingVariances[[#Headers],[8 月]]),1),INDEX(MarketingPlan[],,1),0),MATCH(MarketingVariances[[#Headers],[8 月]],MarketingPlan[#Headers],0))-INDEX(MarketingActual[],MATCH(INDEX(MarketingVariances[],ROW()-ROW(MarketingVariances[[#Headers],[8 月]]),1),INDEX(MarketingPlan[],,1),0),MATCH(MarketingVariances[[#Headers],[8 月]],MarketingActual[#Headers],0)) -> ¥200.00 | K25: =INDEX(MarketingPlan[],MATCH(INDEX(MarketingVariances[],ROW()-ROW(MarketingVariances[[#Headers],[9 月]]),1),INDEX(MarketingPlan[],,1),0),MATCH(MarketingVariances[[#Headers],[9 月]],MarketingPlan[#Headers],0))-INDEX(MarketingActual[],MATCH(INDEX(MarketingVariances[],ROW()-ROW(MarketingVariances[[#Headers],[9 月]]),1),INDEX(MarketingPlan[],,1),0),MATCH(MarketingVariances[[#Headers],[9 月]],MarketingActual[#Headers],0)) -> ¥200.00 | L25: =INDEX(MarketingPlan[],MATCH(INDEX(MarketingVariances[],ROW()-ROW(MarketingVariances[[#Headers],[10 月]]),1),INDEX(MarketingPlan[],,1),0),MATCH(MarketingVariances[[#Headers],[10 月]],MarketingPlan[#Headers],0))-INDEX(MarketingActual[],MATCH(INDEX(MarketingVariances[],ROW()-ROW(MarketingVariances[[#Headers],[10 月]]),1),INDEX(MarketingPlan[],,1),0),MATCH(MarketingVariances[[#Headers],[10 月]],MarketingActual[#Headers],0)) -> ¥200.00 | M25: =INDEX(MarketingPlan[],MATCH(INDEX(MarketingVariances[],ROW()-ROW(MarketingVariances[[#Headers],[11 月]]),1),INDEX(MarketingPlan[],,1),0),MATCH(MarketingVariances[[#Headers],[11 月]],MarketingPlan[#Headers],0))-INDEX(MarketingActual[],MATCH(INDEX(MarketingVariances[],ROW()-ROW(MarketingVariances[[#Headers],[11 月]]),1),INDEX(MarketingPlan[],,1),0),MATCH(MarketingVariances[[#Headers],[11 月]],MarketingActual[#Headers],0)) -> ¥200.00 | N25: =INDEX(MarketingPlan[],MATCH(INDEX(MarketingVariances[],ROW()-ROW(MarketingVariances[[#Headers],[12 月]]),1),INDEX(MarketingPlan[],,1),0),MATCH(MarketingVariances[[#Headers],[12 月]],MarketingPlan[#Headers],0))-INDEX(MarketingActual[],MATCH(INDEX(MarketingVariances[],ROW()-ROW(MarketingVariances[[#Headers],[12 月]]),1),INDEX(MarketingPlan[],,1),0),MATCH(MarketingVariances[[#Headers],[12 月]],MarketingActual[#Headers],0)) -> ¥200.00 | O25: =SUM(MarketingVariances[[#This Row],[1 月]:[12 月]]) -> ¥820.00
B26: マーケティング イベント | C26: =INDEX(MarketingPlan[],MATCH(INDEX(MarketingVariances[],ROW()-ROW(MarketingVariances[[#Headers],[1 月]]),1),INDEX(MarketingPlan[],,1),0),MATCH(MarketingVariances[[#Headers],[1 月]],MarketingPlan[#Headers],0))-INDEX(MarketingActual[],MATCH(INDEX(MarketingVariances[],ROW()-ROW(MarketingVariances[[#Headers],[1 月]]),1),INDEX(MarketingPlan[],,1),0),MATCH(MarketingVariances[[#Headers],[1 月]],MarketingActual[#Headers],0)) -> ¥200.00 | D26: =INDEX(MarketingPlan[],MATCH(INDEX(MarketingVariances[],ROW()-ROW(MarketingVariances[[#Headers],[2 月]]),1),INDEX(MarketingPlan[],,1),0),MATCH(MarketingVariances[[#Headers],[2 月]],MarketingPlan[#Headers],0))-INDEX(MarketingActual[],MATCH(INDEX(MarketingVariances[],ROW()-ROW(MarketingVariances[[#Headers],[2 月]]),1),INDEX(MarketingPlan[],,1),0),MATCH(MarketingVariances[[#Headers],[2 月]],MarketingActual[#Headers],0)) -> (¥200.00) | E26: =INDEX(MarketingPlan[],MATCH(INDEX(MarketingVariances[],ROW()-ROW(MarketingVariances[[#Headers],[3 月]]),1),INDEX(MarketingPlan[],,1),0),MATCH(MarketingVariances[[#Headers],[3 月]],MarketingPlan[#Headers],0))-INDEX(MarketingActual[],MATCH(INDEX(MarketingVariances[],ROW()-ROW(MarketingVariances[[#Headers],[3 月]]),1),INDEX(MarketingPlan[],,1),0),MATCH(MarketingVariances[[#Headers],[3 月]],MarketingActual[#Headers],0)) -> (¥200.00) | F26: =INDEX(MarketingPlan[],MATCH(INDEX(MarketingVariances[],ROW()-ROW(MarketingVariances[[#Headers],[4 月]]),1),INDEX(MarketingPlan[],,1),0),MATCH(MarketingVariances[[#Headers],[4 月]],MarketingPlan[#Headers],0))-INDEX(MarketingActual[],MATCH(INDEX(MarketingVariances[],ROW()-ROW(MarketingVariances[[#Headers],[4 月]]),1),INDEX(MarketingPlan[],,1),0),MATCH(MarketingVariances[[#Headers],[4 月]],MarketingActual[#Headers],0)) -> ¥300.00 | G26: =INDEX(MarketingPlan[],MATCH(INDEX(MarketingVariances[],ROW()-ROW(MarketingVariances[[#Headers],[5 月]]),1),INDEX(MarketingPlan[],,1),0),MATCH(MarketingVariances[[#Headers],[5 月]],MarketingPlan[#Headers],0))-INDEX(MarketingActual[],MATCH(INDEX(MarketingVariances[],ROW()-ROW(MarketingVariances[[#Headers],[5 月]]),1),INDEX(MarketingPlan[],,1),0),MATCH(MarketingVariances[[#Headers],[5 月]],MarketingActual[#Headers],0)) -> ¥500.00 | H26: =INDEX(MarketingPlan[],MATCH(INDEX(MarketingVariances[],ROW()-ROW(MarketingVariances[[#Headers],[6 月]]),1),INDEX(MarketingPlan[],,1),0),MATCH(MarketingVariances[[#Headers],[6 月]],MarketingPlan[#Headers],0))-INDEX(MarketingActual[],MATCH(INDEX(MarketingVariances[],ROW()-ROW(MarketingVariances[[#Headers],[6 月]]),1),INDEX(MarketingPlan[],,1),0),MATCH(MarketingVariances[[#Headers],[6 月]],MarketingActual[#Headers],0)) -> (¥300.00) | I26: =INDEX(MarketingPlan[],MATCH(INDEX(MarketingVariances[],ROW()-ROW(MarketingVariances[[#Headers],[7 月]]),1),INDEX(MarketingPlan[],,1),0),MATCH(MarketingVariances[[#Headers],[7 月]],MarketingPlan[#Headers],0))-INDEX(MarketingActual[],MATCH(INDEX(MarketingVariances[],ROW()-ROW(MarketingVariances[[#Headers],[7 月]]),1),INDEX(MarketingPlan[],,1),0),MATCH(MarketingVariances[[#Headers],[7 月]],MarketingActual[#Headers],0)) -> ¥2,000.00 | J26: =INDEX(MarketingPlan[],MATCH(INDEX(MarketingVariances[],ROW()-ROW(MarketingVariances[[#Headers],[8 月]]),1),INDEX(MarketingPlan[],,1),0),MATCH(MarketingVariances[[#Headers],[8 月]],MarketingPlan[#Headers],0))-INDEX(MarketingActual[],MATCH(INDEX(MarketingVariances[],ROW()-ROW(MarketingVariances[[#Headers],[8 月]]),1),INDEX(MarketingPlan[],,1),0),MATCH(MarketingVariances[[#Headers],[8 月]],MarketingActual[#Headers],0)) -> ¥5,000.00 | K26: =INDEX(MarketingPlan[],MATCH(INDEX(MarketingVariances[],ROW()-ROW(MarketingVariances[[#Headers],[9 月]]),1),INDEX(MarketingPlan[],,1),0),MATCH(MarketingVariances[[#Headers],[9 月]],MarketingPlan[#Headers],0))-INDEX(MarketingActual[],MATCH(INDEX(MarketingVariances[],ROW()-ROW(MarketingVariances[[#Headers],[9 月]]),1),INDEX(MarketingPlan[],,1),0),MATCH(MarketingVariances[[#Headers],[9 月]],MarketingActual[#Headers],0)) -> ¥2,000.00 | L26: =INDEX(MarketingPlan[],MATCH(INDEX(MarketingVariances[],ROW()-ROW(MarketingVariances[[#Headers],[10 月]]),1),INDEX(MarketingPlan[],,1),0),MATCH(MarketingVariances[[#Headers],[10 月]],MarketingPlan[#Headers],0))-INDEX(MarketingActual[],MATCH(INDEX(MarketingVariances[],ROW()-ROW(MarketingVariances[[#Headers],[10 月]]),1),INDEX(MarketingPlan[],,1),0),MATCH(MarketingVariances[[#Headers],[10 月]],MarketingActual[#Headers],0)) -> ¥2,000.00 | M26: =INDEX(MarketingPlan[],MATCH(INDEX(MarketingVariances[],ROW()-ROW(MarketingVariances[[#Headers],[11 月]]),1),INDEX(MarketingPlan[],,1),0),MATCH(MarketingVariances[[#Headers],[11 月]],MarketingPlan[#Headers],0))-INDEX(MarketingActual[],MATCH(INDEX(MarketingVariances[],ROW()-ROW(MarketingVariances[[#Headers],[11 月]]),1),INDEX(MarketingPlan[],,1),0),MATCH(MarketingVariances[[#Headers],[11 月]],MarketingActual[#Headers],0)) -> ¥2,000.00 | N26: =INDEX(MarketingPlan[],MATCH(INDEX(MarketingVariances[],ROW()-ROW(MarketingVariances[[#Headers],[12 月]]),1),INDEX(MarketingPlan[],,1),0),MATCH(MarketingVariances[[#Headers],[12 月]],MarketingPlan[#Headers],0))-INDEX(MarketingActual[],MATCH(INDEX(MarketingVariances[],ROW()-ROW(MarketingVariances[[#Headers],[12 月]]),1),INDEX(MarketingPlan[],,1),0),MATCH(MarketingVariances[[#Headers],[12 月]],MarketingActual[#Headers],0)) -> ¥5,000.00 | O26: =SUM(MarketingVariances[[#This Row],[1 月]:[12 月]]) -> ¥18,300.00
B27: その他の経費 | C27: =INDEX(MarketingPlan[],MATCH(INDEX(MarketingVariances[],ROW()-ROW(MarketingVariances[[#Headers],[1 月]]),1),INDEX(MarketingPlan[],,1),0),MATCH(MarketingVariances[[#Headers],[1 月]],MarketingPlan[#Headers],0))-INDEX(MarketingActual[],MATCH(INDEX(MarketingVariances[],ROW()-ROW(MarketingVariances[[#Headers],[1 月]]),1),INDEX(MarketingPlan[],,1),0),MATCH(MarketingVariances[[#Headers],[1 月]],MarketingActual[#Headers],0)) -> ¥55.00 | D27: =INDEX(MarketingPlan[],MATCH(INDEX(MarketingVariances[],ROW()-ROW(MarketingVariances[[#Headers],[2 月]]),1),INDEX(MarketingPlan[],,1),0),MATCH(MarketingVariances[[#Headers],[2 月]],MarketingPlan[#Headers],0))-INDEX(MarketingActual[],MATCH(INDEX(MarketingVariances[],ROW()-ROW(MarketingVariances[[#Headers],[2 月]]),1),INDEX(MarketingPlan[],,1),0),MATCH(MarketingVariances[[#Headers],[2 月]],MarketingActual[#Headers],0)) -> ¥44.00 | E27: =INDEX(MarketingPlan[],MATCH(INDEX(MarketingVariances[],ROW()-ROW(MarketingVariances[[#Headers],[3 月]]),1),INDEX(MarketingPlan[],,1),0),MATCH(MarketingVariances[[#Headers],[3 月]],MarketingPlan[#Headers],0))-INDEX(MarketingActual[],MATCH(INDEX(MarketingVariances[],ROW()-ROW(MarketingVariances[[#Headers],[3 月]]),1),INDEX(MarketingPlan[],,1),0),MATCH(MarketingVariances[[#Headers],[3 月]],MarketingActual[#Headers],0)) -> ¥77.00 | F27: =INDEX(MarketingPlan[],MATCH(INDEX(MarketingVariances[],ROW()-ROW(MarketingVariances[[#Headers],[4 月]]),1),INDEX(MarketingPlan[],,1),0),MATCH(MarketingVariances[[#Headers],[4 月]],MarketingPlan[#Headers],0))-INDEX(MarketingActual[],MATCH(INDEX(MarketingVariances[],ROW()-ROW(MarketingVariances[[#Headers],[4 月]]),1),INDEX(MarketingPlan[],,1),0),MATCH(MarketingVariances[[#Headers],[4 月]],MarketingActual[#Headers],0)) -> (¥23.00) | G27: =INDEX(MarketingPlan[],MATCH(INDEX(MarketingVariances[],ROW()-ROW(MarketingVariances[[#Headers],[5 月]]),1),INDEX(MarketingPlan[],,1),0),MATCH(MarketingVariances[[#Headers],[5 月]],MarketingPlan[#Headers],0))-INDEX(MarketingActual[],MATCH(INDEX(MarketingVariances[],ROW()-ROW(MarketingVariances[[#Headers],[5 月]]),1),INDEX(MarketingPlan[],,1),0),MATCH(MarketingVariances[[#Headers],[5 月]],MarketingActual[#Headers],0)) -> ¥13.00 | H27: =INDEX(MarketingPlan[],MATCH(INDEX(MarketingVariances[],ROW()-ROW(MarketingVariances[[#Headers],[6 月]]),1),INDEX(MarketingPlan[],,1),0),MATCH(MarketingVariances[[#Headers],[6 月]],MarketingPlan[#Headers],0))-INDEX(MarketingActual[],MATCH(INDEX(MarketingVariances[],ROW()-ROW(MarketingVariances[[#Headers],[6 月]]),1),INDEX(MarketingPlan[],,1),0),MATCH(MarketingVariances[[#Headers],[6 月]],MarketingActual[#Headers],0)) -> (¥45.00) | I27: =INDEX(MarketingPlan[],MATCH(INDEX(MarketingVariances[],ROW()-ROW(MarketingVariances[[#Headers],[7 月]]),1),INDEX(MarketingPlan[],,1),0),MATCH(MarketingVariances[[#Headers],[7 月]],MarketingPlan[#Headers],0))-INDEX(MarketingActual[],MATCH(INDEX(MarketingVariances[],ROW()-ROW(MarketingVariances[[#Headers],[7 月]]),1),INDEX(MarketingPlan[],,1),0),MATCH(MarketingVariances[[#Headers],[7 月]],MarketingActual[#Headers],0)) -> ¥200.00 | J27: =INDEX(MarketingPlan[],MATCH(INDEX(MarketingVariances[],ROW()-ROW(MarketingVariances[[#Headers],[8 月]]),1),INDEX(MarketingPlan[],,1),0),MATCH(MarketingVariances[[#Headers],[8 月]],MarketingPlan[#Headers],0))-INDEX(MarketingActual[],MATCH(INDEX(MarketingVariances[],ROW()-ROW(MarketingVariances[[#Headers],[8 月]]),1),INDEX(MarketingPlan[],,1),0),MATCH(MarketingVariances[[#Headers],[8 月]],MarketingActual[#Headers],0)) -> ¥200.00 | K27: =INDEX(MarketingPlan[],MATCH(INDEX(MarketingVariances[],ROW()-ROW(MarketingVariances[[#Headers],[9 月]]),1),INDEX(MarketingPlan[],,1),0),MATCH(MarketingVariances[[#Headers],[9 月]],MarketingPlan[#Headers],0))-INDEX(MarketingActual[],MATCH(INDEX(MarketingVariances[],ROW()-ROW(MarketingVariances[[#Headers],[9 月]]),1),INDEX(MarketingPlan[],,1),0),MATCH(MarketingVariances[[#Headers],[9 月]],MarketingActual[#Headers],0)) -> ¥200.00 | L27: =INDEX(MarketingPlan[],MATCH(INDEX(MarketingVariances[],ROW()-ROW(MarketingVariances[[#Headers],[10 月]]),1),INDEX(MarketingPlan[],,1),0),MATCH(MarketingVariances[[#Headers],[10 月]],MarketingPlan[#Headers],0))-INDEX(MarketingActual[],MATCH(INDEX(MarketingVariances[],ROW()-ROW(MarketingVariances[[#Headers],[10 月]]),1),INDEX(MarketingPlan[],,1),0),MATCH(MarketingVariances[[#Headers],[10 月]],MarketingActual[#Headers],0)) -> ¥200.00 | M27: =INDEX(MarketingPlan[],MATCH(INDEX(MarketingVariances[],ROW()-ROW(MarketingVariances[[#Headers],[11 月]]),1),INDEX(MarketingPlan[],,1),0),MATCH(MarketingVariances[[#Headers],[11 月]],MarketingPlan[#Headers],0))-INDEX(MarketingActual[],MATCH(INDEX(MarketingVariances[],ROW()-ROW(MarketingVariances[[#Headers],[11 月]]),1),INDEX(MarketingPlan[],,1),0),MATCH(MarketingVariances[[#Headers],[11 月]],MarketingActual[#Headers],0)) -> ¥200.00 | N27: =INDEX(MarketingPlan[],MATCH(INDEX(MarketingVariances[],ROW()-ROW(MarketingVariances[[#Headers],[12 月]]),1),INDEX(MarketingPlan[],,1),0),MATCH(MarketingVariances[[#Headers],[12 月]],MarketingPlan[#Headers],0))-INDEX(MarketingActual[],MATCH(INDEX(MarketingVariances[],ROW()-ROW(MarketingVariances[[#Headers],[12 月]]),1),INDEX(MarketingPlan[],,1),0),MATCH(MarketingVariances[[#Headers],[12 月]],MarketingActual[#Headers],0)) -> ¥200.00 | O27: =SUM(MarketingVariances[[#This Row],[1 月]:[12 月]]) -> ¥1,321.00
B28: 小計 | C28: =SUBTOTAL(109,MarketingVariances[1 月]) -> ¥555.00 | D28: =SUBTOTAL(109,MarketingVariances[2 月]) -> (¥456.00) | E28: =SUBTOTAL(109,MarketingVariances[3 月]) -> (¥23.00) | F28: =SUBTOTAL(109,MarketingVariances[4 月]) -> (¥123.00) | G28: =SUBTOTAL(109,MarketingVariances[5 月]) -> ¥113.00 | H28: =SUBTOTAL(109,MarketingVariances[6 月]) -> (¥825.00) | I28: =SUBTOTAL(109,MarketingVariances[7 月]) -> ¥8,100.00 | J28: =SUBTOTAL(109,MarketingVariances[8 月]) -> ¥6,100.00 | K28: =SUBTOTAL(109,MarketingVariances[9 月]) -> ¥3,100.00 | L28: =SUBTOTAL(109,MarketingVariances[10 月]) -> ¥8,100.00 | M28: =SUBTOTAL(109,MarketingVariances[11 月]) -> ¥3,100.00 | N28: =SUBTOTAL(109,MarketingVariances[12 月]) -> ¥6,900.00 | O28: =SUBTOTAL(109,MarketingVariances[年]) -> ¥34,641.00
A30: トレーニングおよび交通費の差異は、右のセルから始まるトレーニングおよび交通費の差異の表で自動的に計算されます。次の指示はセル A35 に表示されます。 | B30: トレーニング/交通費 | C30: 1 月 | D30: 2 月 | E30: 3 月 | F30: 4 月 | G30: 5 月 | H30: 6 月 | I30: 7 月 | J30: 8 月 | K30: 9 月 | L30: 10 月 | M30: 11 月 | N30: 12 月 | O30: 年
B31: トレーニング クラス | C31: =INDEX(TrainingAndTravelPlan[],MATCH(INDEX(TrainingAndTravelVariances[],ROW()-ROW(TrainingAndTravelVariances[[#Headers],[1 月]]),1),INDEX(TrainingAndTravelPlan[],,1),0),MATCH(TrainingAndTravelVariances[[#Headers],[1 月]],TrainingAndTravelPlan[#Headers],0))-INDEX(TrainingAndTravelActual[],MATCH(INDEX(TrainingAndTravelVariances[],ROW()-ROW(TrainingAndTravelVariances[[#Headers],[1 月]]),1),INDEX(TrainingAndTravelPlan[],,1),0),MATCH(TrainingAndTravelVariances[[#Headers],[1 月]],TrainingAndTravelActual[#Headers],0)) -> ¥400.00 | D31: =INDEX(TrainingAndTravelPlan[],MATCH(INDEX(TrainingAndTravelVariances[],ROW()-ROW(TrainingAndTravelVariances[[#Headers],[2 月]]),1),INDEX(TrainingAndTravelPlan[],,1),0),MATCH(TrainingAndTravelVariances[[#Headers],[2 月]],TrainingAndTravelPlan[#Headers],0))-INDEX(TrainingAndTravelActual[],MATCH(INDEX(TrainingAndTravelVariances[],ROW()-ROW(TrainingAndTravelVariances[[#Headers],[2 月]]),1),INDEX(TrainingAndTravelPlan[],,1),0),MATCH(TrainingAndTravelVariances[[#Headers],[2 月]],TrainingAndTravelActual[#Headers],0)) -> (¥400.00) | E31: =INDEX(TrainingAndTravelPlan[],MATCH(INDEX(TrainingAndTravelVariances[],ROW()-ROW(TrainingAndTravelVariances[[#Headers],[3 月]]),1),INDEX(TrainingAndTravelPlan[],,1),0),MATCH(TrainingAndTravelVariances[[#Headers],[3 月]],TrainingAndTravelPlan[#Headers],0))-INDEX(TrainingAndTravelActual[],MATCH(INDEX(TrainingAndTravelVariances[],ROW()-ROW(TrainingAndTravelVariances[[#Headers],[3 月]]),1),INDEX(TrainingAndTravelPlan[],,1),0),MATCH(TrainingAndTravelVariances[[#Headers],[3 月]],TrainingAndTravelActual[#Headers],0)) -> ¥600.00 | F31: =INDEX(TrainingAndTravelPlan[],MATCH(INDEX(TrainingAndTravelVariances[],ROW()-ROW(TrainingAndTravelVariances[[#Headers],[4 月]]),1),INDEX(TrainingAndTravelPlan[],,1),0),MATCH(TrainingAndTravelVariances[[#Headers],[4 月]],TrainingAndTravelPlan[#Headers],0))-INDEX(TrainingAndTravelActual[],MATCH(INDEX(TrainingAndTravelVariances[],ROW()-ROW(TrainingAndTravelVariances[[#Headers],[4 月]]),1),INDEX(TrainingAndTravelPlan[],,1),0),MATCH(TrainingAndTravelVariances[[#Headers],[4 月]],TrainingAndTravelActual[#Headers],0)) -> ¥400.00 | G31: =INDEX(TrainingAndTravelPlan[],MATCH(INDEX(TrainingAndTravelVariances[],ROW()-ROW(TrainingAndTravelVariances[[#Headers],[5 月]]),1),INDEX(TrainingAndTravelPlan[],,1),0),MATCH(TrainingAndTravelVariances[[#Headers],[5 月]],TrainingAndTravelPlan[#Headers],0))-INDEX(TrainingAndTravelActual[],MATCH(INDEX(TrainingAndTravelVariances[],ROW()-ROW(TrainingAndTravelVariances[[#Headers],[5 月]]),1),INDEX(TrainingAndTravelPlan[],,1),0),MATCH(TrainingAndTravelVariances[[#Headers],[5 月]],TrainingAndTravelActual[#Headers],0)) -> ¥800.00 | H31: =INDEX(TrainingAndTravelPlan[],MATCH(INDEX(TrainingAndTravelVariances[],ROW()-ROW(TrainingAndTravelVariances[[#Headers],[6 月]]),1),INDEX(TrainingAndTravelPlan[],,1),0),MATCH(TrainingAndTravelVariances[[#Headers],[6 月]],TrainingAndTravelPlan[#Headers],0))-INDEX(TrainingAndTravelActual[],MATCH(INDEX(TrainingAndTravelVariances[],ROW()-ROW(TrainingAndTravelVariances[[#Headers],[6 月]]),1),INDEX(TrainingAndTravelPlan[],,1),0),MATCH(TrainingAndTravelVariances[[#Headers],[6 月]],TrainingAndTravelActual[#Headers],0)) -> (¥800.00) | I31: =INDEX(TrainingAndTravelPlan[],MATCH(INDEX(TrainingAndTravelVariances[],ROW()-ROW(TrainingAndTravelVariances[[#Headers],[7 月]]),1),INDEX(TrainingAndTravelPlan[],,1),0),MATCH(TrainingAndTravelVariances[[#Headers],[7 月]],TrainingAndTravelPlan[#Headers],0))-INDEX(TrainingAndTravelActual[],MATCH(INDEX(TrainingAndTravelVariances[],ROW()-ROW(TrainingAndTravelVariances[[#Headers],[7 月]]),1),INDEX(TrainingAndTravelPlan[],,1),0),MATCH(TrainingAndTravelVariances[[#Headers],[7 月]],TrainingAndTravelActual[#Headers],0)) -> ¥2,000.00 | J31: =INDEX(TrainingAndTravelPlan[],MATCH(INDEX(TrainingAndTravelVariances[],ROW()-ROW(TrainingAndTravelVariances[[#Headers],[8 月]]),1),INDEX(TrainingAndTravelPlan[],,1),0),MATCH(TrainingAndTravelVariances[[#Headers],[8 月]],TrainingAndTravelPlan[#Headers],0))-INDEX(TrainingAndTravelActual[],MATCH(INDEX(TrainingAndTravelVariances[],ROW()-ROW(TrainingAndTravelVariances[[#Headers],[8 月]]),1),INDEX(TrainingAndTravelPlan[],,1),0),MATCH(TrainingAndTravelVariances[[#Headers],[8 月]],TrainingAndTravelActual[#Headers],0)) -> ¥2,000.00 | K31: =INDEX(TrainingAndTravelPlan[],MATCH(INDEX(TrainingAndTravelVariances[],ROW()-ROW(TrainingAndTravelVariances[[#Headers],[9 月]]),1),INDEX(TrainingAndTravelPlan[],,1),0),MATCH(TrainingAndTravelVariances[[#Headers],[9 月]],TrainingAndTravelPlan[#Headers],0))-INDEX(TrainingAndTravelActual[],MATCH(INDEX(TrainingAndTravelVariances[],ROW()-ROW(TrainingAndTravelVariances[[#Headers],[9 月]]),1),INDEX(TrainingAndTravelPlan[],,1),0),MATCH(TrainingAndTravelVariances[[#Headers],[9 月]],TrainingAndTravelActual[#Headers],0)) -> ¥2,000.00 | L31: =INDEX(TrainingAndTravelPlan[],MATCH(INDEX(TrainingAndTravelVariances[],ROW()-ROW(TrainingAndTravelVariances[[#Headers],[10 月]]),1),INDEX(TrainingAndTravelPlan[],,1),0),MATCH(TrainingAndTravelVariances[[#Headers],[10 月]],TrainingAndTravelPlan[#Headers],0))-INDEX(TrainingAndTravelActual[],MATCH(INDEX(TrainingAndTravelVariances[],ROW()-ROW(TrainingAndTravelVariances[[#Headers],[10 月]]),1),INDEX(TrainingAndTravelPlan[],,1),0),MATCH(TrainingAndTravelVariances[[#Headers],[10 月]],TrainingAndTravelActual[#Headers],0)) -> ¥2,000.00 | M31: =INDEX(TrainingAndTravelPlan[],MATCH(INDEX(TrainingAndTravelVariances[],ROW()-ROW(TrainingAndTravelVariances[[#Headers],[11 月]]),1),INDEX(TrainingAndTravelPlan[],,1),0),MATCH(TrainingAndTravelVariances[[#Headers],[11 月]],TrainingAndTravelPlan[#Headers],0))-INDEX(TrainingAndTravelActual[],MATCH(INDEX(TrainingAndTravelVariances[],ROW()-ROW(TrainingAndTravelVariances[[#Headers],[11 月]]),1),INDEX(TrainingAndTravelPlan[],,1),0),MATCH(TrainingAndTravelVariances[[#Headers],[11 月]],TrainingAndTravelActual[#Headers],0)) -> ¥2,000.00 | N31: =INDEX(TrainingAndTravelPlan[],MATCH(INDEX(TrainingAndTravelVariances[],ROW()-ROW(TrainingAndTravelVariances[[#Headers],[12 月]]),1),INDEX(TrainingAndTravelPlan[],,1),0),MATCH(TrainingAndTravelVariances[[#Headers],[12 月]],TrainingAndTravelPlan[#Headers],0))-INDEX(TrainingAndTravelActual[],MATCH(INDEX(TrainingAndTravelVariances[],ROW()-ROW(TrainingAndTravelVariances[[#Headers],[12 月]]),1),INDEX(TrainingAndTravelPlan[],,1),0),MATCH(TrainingAndTravelVariances[[#Headers],[12 月]],TrainingAndTravelActual[#Headers],0)) -> ¥2,000.00 | O31: =SUM(TrainingAndTravelVariances[[#This Row],[1 月]:[12 月]]) -> ¥13,000.00
B32: トレーニング関連の交通費 | C32: =INDEX(TrainingAndTravelPlan[],MATCH(INDEX(TrainingAndTravelVariances[],ROW()-ROW(TrainingAndTravelVariances[[#Headers],[1 月]]),1),INDEX(TrainingAndTravelPlan[],,1),0),MATCH(TrainingAndTravelVariances[[#Headers],[1 月]],TrainingAndTravelPlan[#Headers],0))-INDEX(TrainingAndTravelActual[],MATCH(INDEX(TrainingAndTravelVariances[],ROW()-ROW(TrainingAndTravelVariances[[#Headers],[1 月]]),1),INDEX(TrainingAndTravelPlan[],,1),0),MATCH(TrainingAndTravelVariances[[#Headers],[1 月]],TrainingAndTravelActual[#Headers],0)) -> ¥800.00 | D32: =INDEX(TrainingAndTravelPlan[],MATCH(INDEX(TrainingAndTravelVariances[],ROW()-ROW(TrainingAndTravelVariances[[#Headers],[2 月]]),1),INDEX(TrainingAndTravelPlan[],,1),0),MATCH(TrainingAndTravelVariances[[#Headers],[2 月]],TrainingAndTravelPlan[#Headers],0))-INDEX(TrainingAndTravelActual[],MATCH(INDEX(TrainingAndTravelVariances[],ROW()-ROW(TrainingAndTravelVariances[[#Headers],[2 月]]),1),INDEX(TrainingAndTravelPlan[],,1),0),MATCH(TrainingAndTravelVariances[[#Headers],[2 月]],TrainingAndTravelActual[#Headers],0)) -> (¥200.00) | E32: =INDEX(TrainingAndTravelPlan[],MATCH(INDEX(TrainingAndTravelVariances[],ROW()-ROW(TrainingAndTravelVariances[[#Headers],[3 月]]),1),INDEX(TrainingAndTravelPlan[],,1),0),MATCH(TrainingAndTravelVariances[[#Headers],[3 月]],TrainingAndTravelPlan[#Headers],0))-INDEX(TrainingAndTravelActual[],MATCH(INDEX(TrainingAndTravelVariances[],ROW()-ROW(TrainingAndTravelVariances[[#Headers],[3 月]]),1),INDEX(TrainingAndTravelPlan[],,1),0),MATCH(TrainingAndTravelVariances[[#Headers],[3 月]],TrainingAndTravelActual[#Headers],0)) -> ¥600.00 | F32: =INDEX(TrainingAndTravelPlan[],MATCH(INDEX(TrainingAndTravelVariances[],ROW()-ROW(TrainingAndTravelVariances[[#Headers],[4 月]]),1),INDEX(TrainingAndTravelPlan[],,1),0),MATCH(TrainingAndTravelVariances[[#Headers],[4 月]],TrainingAndTravelPlan[#Headers],0))-INDEX(TrainingAndTravelActual[],MATCH(INDEX(TrainingAndTravelVariances[],ROW()-ROW(TrainingAndTravelVariances[[#Headers],[4 月]]),1),INDEX(TrainingAndTravelPlan[],,1),0),MATCH(TrainingAndTravelVariances[[#Headers],[4 月]],TrainingAndTravelActual[#Headers],0)) -> ¥800.00 | G32: =INDEX(TrainingAndTravelPlan[],MATCH(INDEX(TrainingAndTravelVariances[],ROW()-ROW(TrainingAndTravelVariances[[#Headers],[5 月]]),1),INDEX(TrainingAndTravelPlan[],,1),0),MATCH(TrainingAndTravelVariances[[#Headers],[5 月]],TrainingAndTravelPlan[#Headers],0))-INDEX(TrainingAndTravelActual[],MATCH(INDEX(TrainingAndTravelVariances[],ROW()-ROW(TrainingAndTravelVariances[[#Headers],[5 月]]),1),INDEX(TrainingAndTravelPlan[],,1),0),MATCH(TrainingAndTravelVariances[[#Headers],[5 月]],TrainingAndTravelActual[#Headers],0)) -> ¥1,200.00 | H32: =INDEX(TrainingAndTravelPlan[],MATCH(INDEX(TrainingAndTravelVariances[],ROW()-ROW(TrainingAndTravelVariances[[#Headers],[6 月]]),1),INDEX(TrainingAndTravelPlan[],,1),0),MATCH(TrainingAndTravelVariances[[#Headers],[6 月]],TrainingAndTravelPlan[#Headers],0))-INDEX(TrainingAndTravelActual[],MATCH(INDEX(TrainingAndTravelVariances[],ROW()-ROW(TrainingAndTravelVariances[[#Headers],[6 月]]),1),INDEX(TrainingAndTravelPlan[],,1),0),MATCH(TrainingAndTravelVariances[[#Headers],[6 月]],TrainingAndTravelActual[#Headers],0)) -> (¥1,500.00) | I32: =INDEX(TrainingAndTravelPlan[],MATCH(INDEX(TrainingAndTravelVariances[],ROW()-ROW(TrainingAndTravelVariances[[#Headers],[7 月]]),1),INDEX(TrainingAndTravelPlan[],,1),0),MATCH(TrainingAndTravelVariances[[#Headers],[7 月]],TrainingAndTravelPlan[#Headers],0))-INDEX(TrainingAndTravelActual[],MATCH(INDEX(TrainingAndTravelVariances[],ROW()-ROW(TrainingAndTravelVariances[[#Headers],[7 月]]),1),INDEX(TrainingAndTravelPlan[],,1),0),MATCH(TrainingAndTravelVariances[[#Headers],[7 月]],TrainingAndTravelActual[#Headers],0)) -> ¥2,000.00 | J32: =INDEX(TrainingAndTravelPlan[],MATCH(INDEX(TrainingAndTravelVariances[],ROW()-ROW(TrainingAndTravelVariances[[#Headers],[8 月]]),1),INDEX(TrainingAndTravelPlan[],,1),0),MATCH(TrainingAndTravelVariances[[#Headers],[8 月]],TrainingAndTravelPlan[#Headers],0))-INDEX(TrainingAndTravelActual[],MATCH(INDEX(TrainingAndTravelVariances[],ROW()-ROW(TrainingAndTravelVariances[[#Headers],[8 月]]),1),INDEX(TrainingAndTravelPlan[],,1),0),MATCH(TrainingAndTravelVariances[[#Headers],[8 月]],TrainingAndTravelActual[#Headers],0)) -> ¥2,000.00 | K32: =INDEX(TrainingAndTravelPlan[],MATCH(INDEX(TrainingAndTravelVariances[],ROW()-ROW(TrainingAndTravelVariances[[#Headers],[9 月]]),1),INDEX(TrainingAndTravelPlan[],,1),0),MATCH(TrainingAndTravelVariances[[#Headers],[9 月]],TrainingAndTravelPlan[#Headers],0))-INDEX(TrainingAndTravelActual[],MATCH(INDEX(TrainingAndTravelVariances[],ROW()-ROW(TrainingAndTravelVariances[[#Headers],[9 月]]),1),INDEX(TrainingAndTravelPlan[],,1),0),MATCH(TrainingAndTravelVariances[[#Headers],[9 月]],TrainingAndTravelActual[#Headers],0)) -> ¥2,000.00 | L32: =INDEX(TrainingAndTravelPlan[],MATCH(INDEX(TrainingAndTravelVariances[],ROW()-ROW(TrainingAndTravelVariances[[#Headers],[10 月]]),1),INDEX(TrainingAndTravelPlan[],,1),0),MATCH(TrainingAndTravelVariances[[#Headers],[10 月]],TrainingAndTravelPlan[#Headers],0))-INDEX(TrainingAndTravelActual[],MATCH(INDEX(TrainingAndTravelVariances[],ROW()-ROW(TrainingAndTravelVariances[[#Headers],[10 月]]),1),INDEX(TrainingAndTravelPlan[],,1),0),MATCH(TrainingAndTravelVariances[[#Headers],[10 月]],TrainingAndTravelActual[#Headers],0)) -> ¥2,000.00 | M32: =INDEX(TrainingAndTravelPlan[],MATCH(INDEX(TrainingAndTravelVariances[],ROW()-ROW(TrainingAndTravelVariances[[#Headers],[11 月]]),1),INDEX(TrainingAndTravelPlan[],,1),0),MATCH(TrainingAndTravelVariances[[#Headers],[11 月]],TrainingAndTravelPlan[#Headers],0))-INDEX(TrainingAndTravelActual[],MATCH(INDEX(TrainingAndTravelVariances[],ROW()-ROW(TrainingAndTravelVariances[[#Headers],[11 月]]),1),INDEX(TrainingAndTravelPlan[],,1),0),MATCH(TrainingAndTravelVariances[[#Headers],[11 月]],TrainingAndTravelActual[#Headers],0)) -> ¥2,000.00 | N32: =INDEX(TrainingAndTravelPlan[],MATCH(INDEX(TrainingAndTravelVariances[],ROW()-ROW(TrainingAndTravelVariances[[#Headers],[12 月]]),1),INDEX(TrainingAndTravelPlan[],,1),0),MATCH(TrainingAndTravelVariances[[#Headers],[12 月]],TrainingAndTravelPlan[#Headers],0))-INDEX(TrainingAndTravelActual[],MATCH(INDEX(TrainingAndTravelVariances[],ROW()-ROW(TrainingAndTravelVariances[[#Headers],[12 月]]),1),INDEX(TrainingAndTravelPlan[],,1),0),MATCH(TrainingAndTravelVariances[[#Headers],[12 月]],TrainingAndTravelActual[#Headers],0)) -> ¥2,000.00 | O32: =SUM(TrainingAndTravelVariances[[#This Row],[1 月]:[12 月]]) -> ¥13,700.00
B33: 小計 | C33: =SUBTOTAL(109,TrainingAndTravelVariances[1 月]) -> ¥1,200.00 | D33: =SUBTOTAL(109,TrainingAndTravelVariances[2 月]) -> (¥600.00) | E33: =SUBTOTAL(109,TrainingAndTravelVariances[3 月]) -> ¥1,200.00 | F33: =SUBTOTAL(109,TrainingAndTravelVariances[4 月]) -> ¥1,200.00 | G33: =SUBTOTAL(109,TrainingAndTravelVariances[5 月]) -> ¥2,000.00 | H33: =SUBTOTAL(109,TrainingAndTravelVariances[6 月]) -> (¥2,300.00) | I33: =SUBTOTAL(109,TrainingAndTravelVariances[7 月]) -> ¥4,000.00 | J33: =SUBTOTAL(109,TrainingAndTravelVariances[8 月]) -> ¥4,000.00 | K33: =SUBTOTAL(109,TrainingAndTravelVariances[9 月]) -> ¥4,000.00 | L33: =SUBTOTAL(109,TrainingAndTravelVariances[10 月]) -> ¥4,000.00 | M33: =SUBTOTAL(109,TrainingAndTravelVariances[11 月]) -> ¥4,000.00 | N33: =SUBTOTAL(109,TrainingAndTravelVariances[12 月]) -> ¥4,000.00 | O33: =SUBTOTAL(109,TrainingAndTravelVariances[年]) -> ¥26,700.00
A35: 経費差異は、右のセルから始まる合計の差異の表で自動的に計算されます。 | B35: 集計 | C35: 1 月 | D35: 2 月 | E35: 3 月 | F35: 4 月 | G35: 5 月 | H35: 6 月 | I35: 7 月 | J35: 8 月 | K35: 9 月 | L35: 10 月 | M35: 11 月 | N35: 12 月 | O35: 年
B36: 月ごとの実際の費用 | C36: =TrainingAndTravelVariances[[#Totals],[1 月]]+MarketingVariances[[#Totals],[1 月]]+OfficeVariances[[#Totals],[1 月]]+EmployeeVariances[[#Totals],[1 月]] -> ¥1,738.00 | D36: =TrainingAndTravelVariances[[#Totals],[2 月]]+MarketingVariances[[#Totals],[2 月]]+OfficeVariances[[#Totals],[2 月]]+EmployeeVariances[[#Totals],[2 月]] -> (¥984.00) | E36: =TrainingAndTravelVariances[[#Totals],[3 月]]+MarketingVariances[[#Totals],[3 月]]+OfficeVariances[[#Totals],[3 月]]+EmployeeVariances[[#Totals],[3 月]] -> ¥1,255.00 | F36: =TrainingAndTravelVariances[[#Totals],[4 月]]+MarketingVariances[[#Totals],[4 月]]+OfficeVariances[[#Totals],[4 月]]+EmployeeVariances[[#Totals],[4 月]] -> ¥301.00 | G36: =TrainingAndTravelVariances[[#Totals],[5 月]]+MarketingVariances[[#Totals],[5 月]]+OfficeVariances[[#Totals],[5 月]]+EmployeeVariances[[#Totals],[5 月]] -> ¥1,440.00 | H36: =TrainingAndTravelVariances[[#Totals],[6 月]]+MarketingVariances[[#Totals],[6 月]]+OfficeVariances[[#Totals],[6 月]]+EmployeeVariances[[#Totals],[6 月]] -> (¥3,744.00) | I36: =TrainingAndTravelVariances[[#Totals],[7 月]]+MarketingVariances[[#Totals],[7 月]]+OfficeVariances[[#Totals],[7 月]]+EmployeeVariances[[#Totals],[7 月]] -> ¥134,695.00 | J36: =TrainingAndTravelVariances[[#Totals],[8 月]]+MarketingVariances[[#Totals],[8 月]]+OfficeVariances[[#Totals],[8 月]]+EmployeeVariances[[#Totals],[8 月]] -> ¥138,918.00 | K36: =TrainingAndTravelVariances[[#Totals],[9 月]]+MarketingVariances[[#Totals],[9 月]]+OfficeVariances[[#Totals],[9 月]]+EmployeeVariances[[#Totals],[9 月]] -> ¥135,918.00 | L36: =TrainingAndTravelVariances[[#Totals],[10 月]]+MarketingVariances[[#Totals],[10 月]]+OfficeVariances[[#Totals],[10 月]]+EmployeeVariances[[#Totals],[10 月]] -> ¥140,918.00 | M36: =TrainingAndTravelVariances[[#Totals],[11 月]]+MarketingVariances[[#Totals],[11 月]]+OfficeVariances[[#Totals],[11 月]]+EmployeeVariances[[#Totals],[11 月]] -> ¥136,218.00 | N36: =TrainingAndTravelVariances[[#Totals],[12 月]]+MarketingVariances[[#Totals],[12 月]]+OfficeVariances[[#Totals],[12 月]]+EmployeeVariances[[#Totals],[12 月]] -> ¥140,018.00 | O36: =TrainingAndTravelVariances[[#Totals],[年]]+MarketingVariances[[#Totals],[年]]+OfficeVariances[[#Totals],[年]]+EmployeeVariances[[#Totals],[年]] -> ¥826,691.00
B37: 実際の費用の合計 | C37: =SUM($C$36:C36) -> ¥1,738.00 | D37: =SUM($C$36:D36) -> ¥754.00 | E37: =SUM($C$36:E36) -> ¥2,009.00 | F37: =SUM($C$36:F36) -> ¥2,310.00 | G37: =SUM($C$36:G36) -> ¥3,750.00 | H37: =SUM($C$36:H36) -> ¥6.00 | I37: =SUM($C$36:I36) -> ¥134,701.00 | J37: =SUM($C$36:J36) -> ¥273,619.00 | K37: =SUM($C$36:K36) -> ¥409,537.00 | L37: =SUM($C$36:L36) -> ¥550,455.00 | M37: =SUM($C$36:M36) -> ¥686,673.00 | N37: =SUM($C$36:N36) -> ¥826,691.00

Sheet 費用の分析
A1: このワークシートの各経費カテゴリの年ごとの計画された費用と実際の費用、経費差異、および差異率は自動的に更新されます。このワークシートの役に立つ使用方法に関する説明がこの列のセルに表示されます。下向き矢印で開始します。
A2: 会社名は右のセルで自動的に更新されます。セル F2 にロゴを入力します。 | B2: =計画された費用!B2:D3 -> 会社名 | F2: このセルにはロゴのプレースホルダーが表示されます。
A3: このワークシートのタイトルは、セル E3 に表示されます。次の指示はセル A5 に表示されます。 | E3: =worksheet_title -> 詳細経費見積
A5: 計画された費用、実際の費用、経費差異、差異率が右のセルから始まる分析の表で自動的に計算されます。次の指示はセル A12 に表示されます。 | B5: 経費カテゴリ | C5: 計画された費用 | D5: 実際の費用 | E5: 経費差異 | F5: 差異率
B6: 人件費 | C6: =EmployeePlan[[#Totals],[年]] -> ¥1,355,090.00 | D6: =EmployeeActual[[#Totals],[年]] -> ¥659,130.00 | E6: =C6-D6 -> ¥695,960.00 | F6: =E6/C6 -> 51%
B7: =計画された費用!B10 -> オフィス賃貸料 | C7: =OfficePlan[[#Totals],[年]] -> ¥138,740.00 | D7: =OfficeActual[[#Totals],[年]] -> ¥69,350.00 | E7: =C7-D7 -> ¥69,390.00 | F7: =E7/C7 -> 50%
B8: =計画された費用!B21 -> マーケティング費用 | C8: =MarketingPlan[[#Totals],[年]] -> ¥67,800.00 | D8: =MarketingActual[[#Totals],[年]] -> ¥33,159.00 | E8: =C8-D8 -> ¥34,641.00 | F8: =E8/C8 -> 51%
B9: =計画された費用!B30 -> トレーニング/交通費 | C9: =TrainingAndTravelPlan[[#Totals],[年]] -> ¥48,000.00 | D9: =TrainingAndTravelActual[[#Totals],[年]] -> ¥21,300.00 | E9: =C9-D9 -> ¥26,700.00 | F9: =E9/C9 -> 56%
B10: =計画された費用!B35 -> 集計 | C10: =計画された費用!O36 -> ¥1,609,630.00 | D10: =実際の費用!O36 -> ¥782,939.00 | E10: =C10-D10 -> ¥826,691.00 | F10: =E10/C10 -> 51%
A12: 計画された費用の円グラフが右のセルに表示され、実際の費用の円グラフがセル D12 に表示されます。次の指示はセル A14 に表示されます。 | B12: さまざまなカテゴリの計画された費用を示す円グラフがこのセルに表示されます。 | D12: さまざまなカテゴリで発生した実際の費用を示す円グラフがこのセルに表示されます。
A14: 月ごとの計画された費用、実際の費用、および差異を示すグラフが右のセルに表示されます。
